Period,Unique Record Identifier,Account,Account Code Description,Supplier Name,Amount 
201910,201910102099,R5600,Postage Costs,Royal Mail,1054.44
201910,201910102101,R5600,Postage Costs,Royal Mail,1239.69
201910,201910102103,R5600,Postage Costs,Royal Mail,1304.89
201910,201910102107,R5600,Postage Costs,Royal Mail,2071.89
201910,201910102255,R2600,Rent,Reed Rains,750
201910,201910102169,R3660,Redacted: The information is confidential or would attract an exemption under the Freedom of Information Act e.g. where disclosure could be prejudicial to the commercial interests of any person including the authority ,Redacted: The information is confidential or would attract an exemption under the Freedom of Information Act e.g. where disclosure could be prejudicial to the commercial interests of any person including the authority ,1782
201910,201910102170,R3660,Redacted: The information is confidential or would attract an exemption under the Freedom of Information Act e.g. where disclosure could be prejudicial to the commercial interests of any person including the authority ,Redacted: The information is confidential or would attract an exemption under the Freedom of Information Act e.g. where disclosure could be prejudicial to the commercial interests of any person including the authority ,1980
201910,201910102171,R3660,Redacted: The information is confidential or would attract an exemption under the Freedom of Information Act e.g. where disclosure could be prejudicial to the commercial interests of any person including the authority ,Redacted: The information is confidential or would attract an exemption under the Freedom of Information Act e.g. where disclosure could be prejudicial to the commercial interests of any person including the authority ,1980
201910,201910100019,B2302,Inventories/Stocks - General / Admin Equipment - Purchases,Arrow County Supplies,715.79
201910,201910100024,B2302,Inventories/Stocks - General / Admin Equipment - Purchases,Arrow County Supplies,561.9
201910,201910100033,B2312,Inventories/Stocks - Uniforms - Purchases,Sonic Communications Ltd,1190
201910,201910100038,B2312,Inventories/Stocks - Uniforms - Purchases,TCH UK Ltd,967.6
201910,201910100039,B2312,Inventories/Stocks - Uniforms - Purchases,TCH UK Ltd,2054.9
201910,201910100108,B2312,Inventories/Stocks - Uniforms - Purchases,Tranam,1148.32
201910,201910100109,B2312,Inventories/Stocks - Uniforms - Purchases,Tranam,1148.32
201910,201910100743,B2302,Inventories/Stocks - General / Admin Equipment - Purchases,Scenesafe Previously (WA Products (UK) Ltd),816.6
201910,201910100745,B2302,Inventories/Stocks - General / Admin Equipment - Purchases,Scenesafe Previously (WA Products (UK) Ltd),1299.87
201910,201910101232,B2312,Inventories/Stocks - Uniforms - Purchases,Lloyd Motors Ltd,958.85
201910,201910101266,B2312,Inventories/Stocks - Uniforms - Purchases,Keela International Ltd,506.06
201910,201910101270,B2312,Inventories/Stocks - Uniforms - Purchases,Keela International Ltd,764.75
201910,201910101280,B2312,Inventories/Stocks - Uniforms - Purchases,Try & Lilly Ltd,705.6
201910,201910101311,B2312,Inventories/Stocks - Uniforms - Purchases,Ioma Clothing Company,1844.44
201910,201910101317,B2312,Inventories/Stocks - Uniforms - Purchases,MC Products UK Ltd,583.24
201910,201910101318,B2312,Inventories/Stocks - Uniforms - Purchases,MC Products UK Ltd,595
201910,201910101424,R4300,Furniture - General,Centric Office Solutions Limited,980
201910,201910101426,R4300,Furniture - General,Centric Office Solutions Limited,1568
201910,201910101627,B2302,Inventories/Stocks - General / Admin Equipment - Purchases,Draeger Safety UK Ltd,998.1
201910,201910101637,B2312,Inventories/Stocks - Uniforms - Purchases,Deenside Ltd,864.48
201910,201910101638,B2312,Inventories/Stocks - Uniforms - Purchases,Deenside Ltd,768.99
201910,201910101648,B2312,Inventories/Stocks - Uniforms - Purchases,Mehler Vario System GmbH,717
201910,201910101649,B2312,Inventories/Stocks - Uniforms - Purchases,Mehler Vario System GmbH,1560
201910,201910101650,B2312,Inventories/Stocks - Uniforms - Purchases,Mehler Vario System GmbH,782.2
201910,201910101694,B2312,Inventories/Stocks - Uniforms - Purchases,C W Headdress Ltd,988
201910,201910102085,B2312,Inventories/Stocks - Uniforms - Purchases,Niton Equipment Ltd,7020
201910,201910102115,R4005,Office Equipment - Maintenance,Kardex Systems UK Limited,2483.1
201910,201910102149,B2312,Inventories/Stocks - Uniforms - Purchases,Edgar Brothers,1219.9
201910,201910102336,B2312,Inventories/Stocks - Uniforms - Purchases,Michael Lupton Associates Ltd,967.99
201910,201910102337,B2312,Inventories/Stocks - Uniforms - Purchases,Michael Lupton Associates Ltd,1916.65
201910,201910101243,R6750,Consultants Fees - Other,SMSR Ltd,651
201910,201910101244,R6750,Consultants Fees - Other,SMSR Ltd,665
201910,201910102178,R5350,Web Design & Running Costs,Zengenti Ltd,8016
201910,201910100014,R2720,Other Cleaning & Domestic Equipment,Arrow County Supplies,1347.6
201910,201910100021,R2720,Other Cleaning & Domestic Equipment,Arrow County Supplies,906.7
201910,201910100037,R3110,Vehicle Maintenance - Tyres & Tubes,Goodyear Dunlop Tyres UK Limited,7669.3
201910,201910100050,R3510,Vehicle Fuel,Allstar Business Solutions Ltd,1828.91
201910,201910100055,R3120,Vehicle Maintenance - Parts Purchase,Ciceley Commercials,704.91
201910,201910100066,R3460,Accident Damage (Below Insurance Threshold),James Alpe Ltd,1408.81
201910,201910100067,R3460,Accident Damage (Below Insurance Threshold),James Alpe Ltd,1000
201910,201910100088,R2700,Cleaning Contract,Bulloughs Cleaning Services Ltd,13144.49
201910,201910100089,R2700,Cleaning Contract,Bulloughs Cleaning Services Ltd,3742.03
201910,201910100090,R2700,Cleaning Contract,Bulloughs Cleaning Services Ltd,600.98
201910,201910100092,R2700,Cleaning Contract,Bulloughs Cleaning Services Ltd,5127.48
201910,201910100094,R2700,Cleaning Contract,Bulloughs Cleaning Services Ltd,2423.1
201910,201910100095,R2700,Cleaning Contract,Bulloughs Cleaning Services Ltd,3665.94
201910,201910100096,R2700,Cleaning Contract,Bulloughs Cleaning Services Ltd,1502.43
201910,201910100098,R2700,Cleaning Contract,Bulloughs Cleaning Services Ltd,600.97
201910,201910100104,R2700,Cleaning Contract,Bulloughs Cleaning Services Ltd,1502.43
201910,201910100115,R7006,North West Ambulance Service - Estates Management Collaboration,BID Group Ltd,999.25
201910,201910100119,R2070,Unplanned Building Services Internal Other,BID Group Ltd,514
201910,201910100120,R2140,Unplanned Building Maintenance Internal Maintenance,BID Group Ltd,2350
201910,201910100128,R4540,Canteen - Hot Drink Machines,Rijo 42 Ingredients Ltd,1032.36
201910,201910100130,R4540,Canteen - Hot Drink Machines,Rijo 42 Ingredients Ltd,900.26
201910,201910100187,R4520,Canteen - Purchase of Food / Ingredients,PFD (Carlisle) Ltd t/a Pioneer Foodservice,1140.39
201910,201910100188,R4520,Canteen - Purchase of Food / Ingredients,PFD (Carlisle) Ltd t/a Pioneer Foodservice,1146.81
201910,201910100189,R4520,Canteen - Purchase of Food / Ingredients,PFD (Carlisle) Ltd t/a Pioneer Foodservice,947.44
201910,201910100190,R4520,Canteen - Purchase of Food / Ingredients,PFD (Carlisle) Ltd t/a Pioneer Foodservice,1040.15
201910,201910100192,R4520,Canteen - Purchase of Food / Ingredients,PFD (Carlisle) Ltd t/a Pioneer Foodservice,950.75
201910,201910100193,R4520,Canteen - Purchase of Food / Ingredients,PFD (Carlisle) Ltd t/a Pioneer Foodservice,1076.05
201910,201910100194,R4520,Canteen - Purchase of Food / Ingredients,PFD (Carlisle) Ltd t/a Pioneer Foodservice,981.38
201910,201910100195,R4520,Canteen - Purchase of Food / Ingredients,PFD (Carlisle) Ltd t/a Pioneer Foodservice,964.06
201910,201910100202,R2080,Unplanned Building Services External Other,Top Notch Contractors Ltd,513.48
201910,201910100217,R3460,Accident Damage (Below Insurance Threshold),Thompson Accident Repair Centre,1690.78
201910,201910100218,R3460,Accident Damage (Below Insurance Threshold),Thompson Accident Repair Centre,1000
201910,201910100221,R3450,Accident Damage (Below Insurance Excess)),Thompson Accident Repair Centre,569.48
201910,201910100232,C2850,Other Building Related Fees (Planning etc),Compass Services Group (Cabling Systems) Ltd,1620
201910,201910100233,R2220,Planned Survey Internal Maintenance,Contract Flooring (Cumbria) Ltd,980
201910,201910100239,R2020,Unplanned Building Services HVAC System,Refrigeration (Mitton) Ltd,603
201910,201910100240,C2830,Professional Fees,Unwin Jones Partnership,2500
201910,201910100265,R3120,Vehicle Maintenance - Parts Purchase,Lloyd Motorrad,674.32
201910,201910100271,R3450,Accident Damage (Below Insurance Excess)),Lloyd Motorrad,2490.74
201910,201910100272,R3420,Vehicle Other Supplements,Lloyd Motorrad,2490.74
201910,201910100282,R7006,North West Ambulance Service - Estates Management Collaboration,Cumbria Mechanical Plumbing Ltd,618.86
201910,201910100289,R2160,Unplanned Building Maintenance Environmental Services/Plumbing,Cumbria Mechanical Plumbing Ltd,747.5
201910,201910100299,R2160,Unplanned Building Maintenance Environmental Services/Plumbing,Cumbria Mechanical Plumbing Ltd,962
201910,201910100300,R7006,North West Ambulance Service - Estates Management Collaboration,JJ Group (Contracting) Ltd,968.22
201910,201910100301,R2160,Unplanned Building Maintenance Environmental Services/Plumbing,Cumbria Mechanical Plumbing Ltd,2338
201910,201910100302,R2150,Unplanned Building Maintenance Electrics,JJ Group (Contracting) Ltd,730
201910,201910100303,R7006,North West Ambulance Service - Estates Management Collaboration,Cumbria Mechanical Plumbing Ltd,3665
201910,201910100316,R7006,North West Ambulance Service - Estates Management Collaboration,Cumbria Mechanical Plumbing Ltd,806
201910,201910100317,R2060,Unplanned Building Services Environmental Services/Plumbing,Cumbria Mechanical Plumbing Ltd,514.2
201910,201910100318,R2150,Unplanned Building Maintenance Electrics,Cumbria Mechanical Plumbing Ltd,1890
201910,201910100429,R2610,Estates Leases,Carlisle City Council,7750
201910,201910100497,R2460,Grounds Maintenance - Contract,S Nicholson Grounds Maintenance,750
201910,201910100527,R2610,Estates Leases,Solway Plain Futures Ltd,1898
201910,201910100602,R2730,Refuse,Amey PLC - Enterprise Managed Services Ltd,1248.8
201910,201910100621,R3120,Vehicle Maintenance - Parts Purchase,David Hayton Ltd,819.11
201910,201910100649,R7006,North West Ambulance Service - Estates Management Collaboration,John Sandelands Ltd,4910.97
201910,201910100651,R7006,North West Ambulance Service - Estates Management Collaboration,John Sandelands Ltd,637.79
201910,201910100718,C2830,Professional Fees,Baker Mallett LLP,827.24
201910,201910100733,C2830,Professional Fees,Tremorfa Ltd,47286
201910,201910101111,R3980,Vehicle Road Fund Licenses,Post Office Counters Ltd,1040
201910,201910101112,R3980,Vehicle Road Fund Licenses,Post Office Counters Ltd,770
201910,201910101115,R2680,PFI Occupancy Charges,West Cumbria Estates Management Limited,100965.33
201910,201910101116,R2680,PFI Occupancy Charges,West Cumbria Estates Management Limited,100965.33
201910,201910101127,R2500,Oil,Scottish Fuels,890.7
201910,201910101128,R2500,Oil,Scottish Fuels,5950
201910,201910101163,R3120,Vehicle Maintenance - Parts Purchase,Arnold Clark Automobiles Ltd,811.03
201910,201910101220,R2510,Electricity,British Gas Trading,5121.76
201910,201910101228,R3210,Police Vehicle Recovery & Transport,FMG Support (RRRM) Ltd,1670.5
201910,201910101237,R2730,Refuse,Biffa Waste Services Ltd,684.4
201910,201910101239,R2730,Refuse,Biffa Waste Services Ltd,557.5
201910,201910101240,R2730,Refuse,Biffa Waste Services Ltd,819.5
201910,201910101361,R2240,Planned Survey Safety Works,FTS Fire & Security Ltd,1552
201910,201910101448,R2610,Estates Leases,Dalton Community Association,1100
201910,201910101470,C3900,Vehicle Purchases - Capital,Rayrigg Motors,11687.7
201910,201910101471,C3900,Vehicle Purchases - Capital,Rayrigg Motors,11687.7
201910,201910101472,C3900,Vehicle Purchases - Capital,Rayrigg Motors,11687.7
201910,201910101473,C3900,Vehicle Purchases - Capital,Rayrigg Motors,11687.7
201910,201910101474,C3900,Vehicle Purchases - Capital,Rayrigg Motors,11687.7
201910,201910101475,C3900,Vehicle Purchases - Capital,Rayrigg Motors,11687.7
201910,201910101476,R2505,Gas,Flogas Britain Ltd,689.75
201910,201910101493,R2273,Planned Servicing Firearms - Bullet Trap etc,Aberswift De-Leading Specialists Limited,4920
201910,201910101517,R3420,Vehicle Other Supplements,Volkswagen Group UK Ltd,558.84
201910,201910101525,R3120,Vehicle Maintenance - Parts Purchase,Volkswagen Group UK Ltd,552.55
201910,201910101599,R2830,Professional Fees,DSSR Consulting Engineers,1360
201910,201910101600,R2740,Destruction of Confidential Waste,Shred-it (Europe) Ltd,923
201910,201910101616,R2610,Estates Leases,Ulverston Properties Ltd,861.66
201910,201910101684,R2610,Estates Leases,National Crime Agency (NCA),20000
201910,201910101735,R2510,Electricity,EDF Energy,5658
201910,201910101737,R2510,Electricity,EDF Energy,2951.24
201910,201910101739,R2510,Electricity,EDF Energy,16261.33
201910,201910101740,R2530,Climate Change Levy,EDF Energy,1045.36
201910,201910101741,R2510,Electricity,EDF Energy,10627.89
201910,201910101742,R2530,Climate Change Levy,EDF Energy,685.99
201910,201910101878,R3450,Accident Damage (Below Insurance Excess)),Enterprise Rent-a-car UK Limited,790.92
201910,201910102112,R2030,Unplanned Building Services Security & Security Equipment Maintenance,Dorma UK Ltd,612.16
201910,201910102118,R2277,Planned Servicing Water Chlorination,Water and air Management Limited,1700.73
201910,201910102131,R2277,Planned Servicing Water Chlorination,Water and air Management Limited,989.4
201910,201910102144,R2277,Planned Servicing Water Chlorination,Water and air Management Limited,3710.25
201910,201910102147,R7006,North West Ambulance Service - Estates Management Collaboration,Countrywide Grounds Maintenance Ltd,641.66
201910,201910102221,R3120,Vehicle Maintenance - Parts Purchase,Castrol (UK) Ltd,1072.36
201910,201910102230,R3120,Vehicle Maintenance - Parts Purchase,Lloyd Motors Ltd,530.5
201910,201910102232,R3120,Vehicle Maintenance - Parts Purchase,Lloyd Motors Ltd,544.9
201910,201910102256,R2286,Planned Servicing Generators/UPS,Burtonwood Generator & Switchgear Services Limited,547
201910,201910102264,R2505,Gas,Corona Energy,8276.73
201910,201910102307,R3510,Vehicle Fuel,Allstar Business Solutions Ltd,2220.63
201910,201910102308,R3510,Vehicle Fuel,Allstar Business Solutions Ltd,1307.87
201910,201910102312,R3510,Vehicle Fuel,Allstar Business Solutions Ltd,3731.66
201910,201910102314,R3510,Vehicle Fuel,Allstar Business Solutions Ltd,69628.04
201910,201910102315,R3510,Vehicle Fuel,Allstar Business Solutions Ltd,1263.66
201910,201910102316,R3510,Vehicle Fuel,Allstar Business Solutions Ltd,838.92
201910,201910102317,R3510,Vehicle Fuel,Allstar Business Solutions Ltd,1912.77
201910,201910102321,C3905,Vehicle Adaptations - Capital,RSG Engineering Ltd,941.21
201910,201910101290,R1610,CID Training,Jill Grant Psychology Services,879.1
201910,201910101574,R1630,Other Operational Training,Police and Crime Commissioner for Greater Manchester,4128.65
201910,201910101583,R1610,CID Training,Alex Preston - Solicitor,850
201910,201910101218,R1150,Gym Equipment - Purchase,Precor,550.12
201910,201910102081,R1152,Gym Equipment - Lease,Investec Asset Finance Plc,2199.89
201910,201910102082,R1152,Gym Equipment - Lease,Investec Asset Finance Plc,2121
201910,201910100030,R6660,Counsel Fees,Atlantic Chambers,546
201910,201910100661,B4003,Redacted: Disclosure of information would breach the Data Protection Act 1998 ,Redacted: Disclosure of information would breach the Data Protection Act 1998 ,588
201910,201910100772,R6660,Counsel Fees,Trinity Chambers (Newcastle-upon-Tyne),600
201910,201910100773,R6660,Counsel Fees,Trinity Chambers (Newcastle-upon-Tyne),2604
201910,201910101276,B4003,Redacted: Disclosure of information would breach the Data Protection Act 1998 ,Redacted: Disclosure of information would breach the Data Protection Act 1998 ,2200
201910,201910101277,B4003,Redacted: Disclosure of information would breach the Data Protection Act 1998 ,Redacted: Disclosure of information would breach the Data Protection Act 1998 ,4000
201910,201910101494,R6644,Redacted: Disclosure of information would breach the Data Protection Act 1998 ,Redacted: Disclosure of information would breach the Data Protection Act 1998 ,600
201910,201910101611,B4006,Provision for Insurance Liabilities - Drawdown from Provision - Own Counsel's Costs,5 Essex Court,3060
201910,201910101612,B4006,Provision for Insurance Liabilities - Drawdown from Provision - Own Counsel's Costs,5 Essex Court,912
201910,201910102263,B4006,Provision for Insurance Liabilities - Drawdown from Provision - Own Counsel's Costs,Outer Temple Chambers,2374.32
201910,201910100031,R7290,Other Third Party Payments,Police and Crime Commissioner for West Midlands,34989
201910,201910100223,Z2114,Police Property Act Fund - Transactions Money Out (Total Expenditure),Harraby Catholic Club Youth Football,1806
201910,201910100473,Z2114,Police Property Act Fund - Transactions Money Out (Total Expenditure),Green Door Centre,1000
201910,201910100619,Z2114,Police Property Act Fund - Transactions Money Out (Total Expenditure),Penrith AFC Juniors,2500
201910,201910100623,Z2114,Police Property Act Fund - Transactions Money Out (Total Expenditure),Plumpton Community Play Area Project,2500
201910,201910100652,Z2123,Returned Payments - Clearance in the Year (Expenditure),Allerdale Girls Football Club,2500
201910,201910100653,Z2123,Returned Payments - Clearance in the Year (Expenditure),Allerdale Girls Football Club,2500
201910,201910100654,Z2123,Returned Payments - Clearance in the Year (Expenditure),Allerdale Girls Football Club,2500
201910,201910101113,R6757,Consultants Fees - Finance,Government Actuary's Department,5699.89
201910,201910101614,R6824,NatWest Corporate Card Payments,Natwest Corporate Card,8099.87
201910,201910101615,R6824,NatWest Corporate Card Payments,Natwest Corporate Card,2379.97
201910,201910101635,R6830,External Audit Fee,Grant Thornton UK LLP,2888
201910,201910102080,R7042,Pension Services,XPS Administration Limited T/A XPS Administration,8396
201910,201910102162,R6710,Subscriptions,Reed Business Information,4095
201910,201910102206,R7290,Other Third Party Payments,Tellemachus Limited,22163.11
201910,201910100713,R5950,Redacted: Disclosure of information would breach the Data Protection Act 1998 ,Redacted: Disclosure of information would breach the Data Protection Act 1998 ,528.65
201910,201910100744,R5835,Operational Equipment - Testing Kits & Consumables,Scenesafe Previously (WA Products (UK) Ltd),620.64
201910,201910100770,R4845,Redacted: The information relates to the protection of vulnerable adults or children ,Redacted: The information relates to the protection of vulnerable adults or children ,2905
201910,201910100774,R4710,Forensic Analysis - Serious Crime,Key Forensic Services Ltd (Orange UK Holdings Ltd),1025.55
201910,201910100775,R4715,Forensic Analysis - Volume Crime,Key Forensic Services Ltd (Orange UK Holdings Ltd),2573.7
201910,201910100777,R4705,Forensic Analysis - Over Prescribed Limit,Key Forensic Services Ltd (Orange UK Holdings Ltd),1297.03
201910,201910100778,R4705,Forensic Analysis - Over Prescribed Limit,Key Forensic Services Ltd (Orange UK Holdings Ltd),1123.03
201910,201910100780,R4715,Forensic Analysis - Volume Crime,Key Forensic Services Ltd (Orange UK Holdings Ltd),719.2
201910,201910100782,R4715,Forensic Analysis - Volume Crime,Key Forensic Services Ltd (Orange UK Holdings Ltd),1080.25
201910,201910100784,R4710,Forensic Analysis - Serious Crime,Key Forensic Services Ltd (Orange UK Holdings Ltd),3004.9
201910,201910100785,R4715,Forensic Analysis - Volume Crime,Key Forensic Services Ltd (Orange UK Holdings Ltd),527.8
201910,201910100789,R4715,Forensic Analysis - Volume Crime,Key Forensic Services Ltd (Orange UK Holdings Ltd),625.8
201910,201910100790,R4710,Forensic Analysis - Serious Crime,Key Forensic Services Ltd (Orange UK Holdings Ltd),2262
201910,201910100791,R4710,Forensic Analysis - Serious Crime,Key Forensic Services Ltd (Orange UK Holdings Ltd),1788.72
201910,201910100793,R4705,Forensic Analysis - Over Prescribed Limit,Key Forensic Services Ltd (Orange UK Holdings Ltd),1289.06
201910,201910100794,R4705,Forensic Analysis - Over Prescribed Limit,Key Forensic Services Ltd (Orange UK Holdings Ltd),2297.53
201910,201910100795,R4705,Forensic Analysis - Over Prescribed Limit,Key Forensic Services Ltd (Orange UK Holdings Ltd),870
201910,201910101074,R5950,Redacted: Disclosure of information would breach the Data Protection Act 1998 ,Redacted: Disclosure of information would breach the Data Protection Act 1998 ,672.75
201910,201910101088,R5950,Redacted: Disclosure of information would breach the Data Protection Act 1998 ,Redacted: Disclosure of information would breach the Data Protection Act 1998 ,1246.44
201910,201910101108,R5950,Redacted: Disclosure of information would breach the Data Protection Act 1998 ,Redacted: Disclosure of information would breach the Data Protection Act 1998 ,822.05
201910,201910101110,R5950,Redacted: Disclosure of information would breach the Data Protection Act 1998 ,Redacted: Disclosure of information would breach the Data Protection Act 1998 ,903.47
201910,201910101114,R4710,Forensic Analysis - Serious Crime,Cellebrite Uk Ltd,1800
201910,201910101332,R5950,Redacted: Disclosure of information would breach the Data Protection Act 1998 ,Redacted: Disclosure of information would breach the Data Protection Act 1998 ,536.42
201910,201910101337,R5950,Redacted: Disclosure of information would breach the Data Protection Act 1998 ,Redacted: Disclosure of information would breach the Data Protection Act 1998 ,921.1
201910,201910101338,R5950,Redacted: Disclosure of information would breach the Data Protection Act 1998 ,Redacted: Disclosure of information would breach the Data Protection Act 1998 ,740.78
201910,201910101497,R5940,Redacted: The information is confidential or would attract an exemption under the Freedom of Information Act e.g. where disclosure could be prejudicial to the commercial interests of any person including the authority ,Redacted: The information is confidential or would attract an exemption under the Freedom of Information Act e.g. where disclosure could be prejudicial to the commercial interests of any person including the authority ,7200
201910,201910101580,R1720,Other Support Function Training,Insight Direct (UK) Ltd,3289
201910,201910101609,R1630,Other Operational Training,Police and Crime Commissioner for Kent,1000
201910,201910101634,R5940,Redacted: The information is confidential or would attract an exemption under the Freedom of Information Act e.g. where disclosure could be prejudicial to the commercial interests of any person including the authority ,Redacted: The information is confidential or would attract an exemption under the Freedom of Information Act e.g. where disclosure could be prejudicial to the commercial interests of any person including the authority ,1660.68
201910,201910101696,R4705,Forensic Analysis - Over Prescribed Limit,Orchid Cellmark Ltd,870
201910,201910101697,R4715,Forensic Analysis - Volume Crime,Orchid Cellmark Ltd,649.6
201910,201910101752,R4845,Redacted: Disclosure of information would breach the Data Protection Act 1998 ,Redacted: Disclosure of information would breach the Data Protection Act 1998 ,2698.02
201910,201910101753,R4845,Redacted: Disclosure of information would breach the Data Protection Act 1998 ,Redacted: Disclosure of information would breach the Data Protection Act 1998 ,2798.02
201910,201910101754,R4845,Redacted: Disclosure of information would breach the Data Protection Act 1998 ,Redacted: Disclosure of information would breach the Data Protection Act 1998 ,2945.04
201910,201910102175,R4845,Redacted: Disclosure of information would breach the Data Protection Act 1998 ,Redacted: Disclosure of information would breach the Data Protection Act 1998 ,2200
201910,201910102181,R4780,CSI Consumables,Acota Limited,4825.88
201910,201910102182,R4845,Expert Witness Testimony / Reports,Acuity Forensic Limited,3600
201910,201910102214,R4720,Forensic Analysis - PACE / DNA,Eurofins Forensic Services Ltd,1938.36
201910,201910102215,R4720,Forensic Analysis - PACE / DNA,Eurofins Forensic Services Ltd,1687.71
201910,201910102219,R6750,Consultants Fees - Other,United Kingdom Accreditation Service (UKAS),9393.25
201910,201910102220,R6750,Consultants Fees - Other,United Kingdom Accreditation Service (UKAS),919
201910,201910102258,R1610,CID Training,Institute for Collaborative Working,2500
201910,201910102318,R5867,Operational Equipment - Maintenance,Foster & Freeman Ltd,2815.33
201910,201910100035,R1090,Other Recruitment Costs,Spring Technology Staffing Services (STSS),5065.65
201910,201910100036,R1090,Other Recruitment Costs,Spring Technology Staffing Services (STSS),5478.75
201910,201910100484,R1340,Added Years Qtrly - LGPS,Cumbria County Council,16192.98
201910,201910101330,R1110,Redacted: The information is confirdential or would attract an exemption under the Freedom of Information Act e.g. where disclosure could be prejudicial to the commercial interests of any person including the authority,Redacted: The information is confirdential or would attract an exemption under the Freedom of Information Act e.g. where disclosure could be prejudicial to the commercial interests of any person including the authority,1150
201910,201910101331,R1110,Redacted: The information is confirdential or would attract an exemption under the Freedom of Information Act e.g. where disclosure could be prejudicial to the commercial interests of any person including the authority,Redacted: The information is confirdential or would attract an exemption under the Freedom of Information Act e.g. where disclosure could be prejudicial to the commercial interests of any person including the authority,575
201910,201910101530,R0500,Agency Staff,Comensura Ltd,1032.8
201910,201910101531,R0500,Agency Staff,Comensura Ltd,1922.31
201910,201910101533,R0500,Agency Staff,Comensura Ltd,526.49
201910,201910101534,R0500,Agency Staff,Comensura Ltd,2264.05
201910,201910101535,R0500,Agency Staff,Comensura Ltd,1032.8
201910,201910101536,R0500,Agency Staff,Comensura Ltd,1855.07
201910,201910101540,R0500,Agency Staff,Comensura Ltd,1213.54
201910,201910101541,R0500,Agency Staff,Comensura Ltd,1788.43
201910,201910101544,R0500,Agency Staff,Comensura Ltd,549
201910,201910101546,R0500,Agency Staff,Comensura Ltd,1811.24
201910,201910101547,R1110,Force Doctor Fees,Comensura Ltd,1377.33
201910,201910101549,R0500,Agency Staff,Comensura Ltd,1131.61
201910,201910101553,R0500,Agency Staff,Comensura Ltd,2264.05
201910,201910101555,R0500,Agency Staff,Comensura Ltd,1088.84
201910,201910101556,R0500,Agency Staff,Comensura Ltd,1559.29
201910,201910101557,R0500,Agency Staff,Comensura Ltd,2264.05
201910,201910101558,R0500,Agency Staff,Comensura Ltd,1116.05
201910,201910101559,R0500,Agency Staff,Comensura Ltd,766.87
201910,201910101561,R0500,Agency Staff,Comensura Ltd,526.49
201910,201910101562,R0500,Agency Staff,Comensura Ltd,2264.05
201910,201910101563,R1110,Force Doctor Fees,Comensura Ltd,1151.63
201910,201910101778,R1132,Immunisations & Vaccinations,Library House Surgery,839
201910,201910102154,R1610,CID Training,College of Policing (NPIA),1547.52
201910,201910100049,R5912,Police Dogs - Feed,Royal Canin (Crown Pet Foods Ltd),1508.15
201910,201910100065,R4630,Detained Persons - Appropriate Adult Services,Child Action North West,11291.28
201910,201910100257,R6780,Grants & Donations,National Association of Police Officers (NARPO),600
201910,201910100611,R5916,Police Dogs - Vets Fees,Frame & Swift,679.11
201910,201910100612,R5916,Police Dogs - Vets Fees,Frame & Swift,1978.13
201910,201910100677,R4625,Detained Persons - Laundry,Shortridge Laundry,612.81
201910,201910100678,R4625,Detained Persons - Laundry,Shortridge Laundry,540.21
201910,201910100768,R4900,Custody Medical Contract,G4S Health Services (UK) Ltd,107330.2
201910,201910101069,R4625,Detained Persons - Laundry,Shortridge Laundry,1232.87
201910,201910101225,R6610,Vehicle Recovery Costs,FMG Support (RRRM) Ltd,1100
201910,201910101227,R6610,Vehicle Recovery Costs,FMG Support (RRRM) Ltd,1419
201910,201910101492,R5980,Firearms Equipment,Civil Defence Supply Limited,2549.96
201910,201910101581,R1720,Other Support Function Training,Insight Direct (UK) Ltd,1196
201910,201910101594,R5865,Operational Equipment - Other,BOC Gases,521
201910,201910101608,R7002,Mutual Aid,Police and Crime Commissioner for Kent,2918.02
201910,201910101625,R4600,Detained Persons - Meals / Refreshments,Bidfood,574.18
201910,201910101640,R5760,Operational Equipment - TASER,Axon Public Safety UK Limited,930
201910,201910101644,C5790,Operational Equipment - Audio / Video Equipment,Axon Public Safety UK Limited,10000
201910,201910101750,R5980,Firearms Equipment,Accuracy International,558.12
201910,201910101779,R1630,Other Operational Training,The Atacc Group (Promedsol),3960
201910,201910101780,R1720,Other Support Function Training,The Atacc Group (Promedsol),1320
201910,201910102183,R5865,Operational Equipment - Other,S P Services (UK) Ltd,-1500
201910,201910102188,R4940,First Aid Equipment / Consumables,S P Services (UK) Ltd,1988.7
201910,201910102265,R7295,Contribution to NPAS,Police and Crime Commissioner for West Yorkshire,4572
201910,201910100688,R5965,Crime Prevention - Labour Costs / Fitting,Mark Tubman (Locksmith & Joinery),550
201910,201910100735,R5965,Crime Prevention - Labour Costs / Fitting,Solon Security Limited,1350
201910,201910101378,R5960,Community Initiatives - Activities & Competitions,Onside Sports Development,750
201910,201910102334,R5965,Crime Prevention - Labour Costs / Fitting,City Electrical Factors,920
201910,201910100170,R6785,Contributions - PCC Commissioning Services,Cumbria Gateway,9544
201910,201910100263,R6785,Contributions - PCC Commissioning Services,Carlisle and District Youthwork Partnership,2850
201910,201910100430,R4922,SARC Counselling Services,Safety Net (UK) - Advice & Support Centre,33306.25
201910,201910100463,R5730,Other Allowances,Legally Qualified Chair,525
201910,201910100539,R6730,Non-Staff Advertising,The Ink Events Company,1100
201910,201910100599,R6785,Contributions - PCC Commissioning Services,Cumbria Partnership NHS Foundation Trust,42000
201910,201910100769,R4920,SARC Doctors,G4S Health Services (UK) Ltd,19172.42
201910,201910101224,R6780,Grants & Donations,Brake,2500
201910,201910101326,R6785,Contributions - PCC Commissioning Services,Resource Creatives Enterprises Ltd,1384.88
201910,201910101349,R6785,Contributions - PCC Commissioning Services,South Lakeland District Council,50000
201910,201910101396,R6785,Contributions - PCC Commissioning Services,Women's Community Matters,3591.17
201910,201910101397,R6785,Contributions - PCC Commissioning Services,Women's Community Matters,10088.76
201910,201910101548,R0500,Agency Staff,Comensura Ltd,807.77
201910,201910101617,R6785,Contributions - PCC Commissioning Services,Leaders Unlocked Limited,8293
201910,201910101636,R6830,External Audit Fee,Grant Thornton UK LLP,5840
201910,201910101672,R6730,Non-Staff Advertising,Newsquest Media Group,600
201910,201910101751,R6785,Contributions - PCC Commissioning Services,Restorative Solutions CIC,11250
201910,201910102090,R6785,Contributions - PCC Commissioning Services,Remedi-Restorative Services,9041.67
201910,201910102091,R6785,Contributions - PCC Commissioning Services,Remedi-Restorative Services,2600
201910,201910102092,R6785,Contributions - PCC Commissioning Services,Remedi-Restorative Services,2600
201910,201910102093,R6785,Contributions - PCC Commissioning Services,Remedi-Restorative Services,9041.67
201910,201910100001,R1710,ICT Training,SailPoint Technologies Inc,1610
201910,201910100002,R1710,ICT Training,SailPoint Technologies Inc,966
201910,201910100005,C6755,Consultants Fees - ICT,EE Limited,2400
201910,201910100047,R5320,Computer Software - Purchase,SCC (Specialist Computer Centre),661.71
201910,201910100048,R5325,Computer Software - Maintenance,SCC (Specialist Computer Centre),3615.13
201910,201910101071,R5325,Computer Software - Maintenance,Capita Secure Information Solutions Ltd,5523.9
201910,201910101129,R5325,Computer Software - Maintenance,Altia Solutions Ltd,2560
201910,201910101499,R1710,ICT Training,QA Training Ltd,5302
201910,201910101501,R1710,ICT Training,QA Training Ltd,6526
201910,201910101502,R1710,ICT Training,QA Training Ltd,5888
201910,201910101568,C6755,Consultants Fees - ICT,NCC Group Security Services Limited,6050
201910,201910101569,R5325,Computer Software - Maintenance,NCC Group Security Services Limited,1821.77
201910,201910101575,C5310,Computer Hardware - Purchase,Softcat PLC,1452.01
201910,201910101576,R5325,Computer Software - Maintenance,Softcat PLC,41518.6
201910,201910101577,C5120,Networks Private Circuits,Insight Direct (UK) Ltd,950
201910,201910101578,R5120,Networks Private Circuits,Insight Direct (UK) Ltd,2858.75
201910,201910101582,R5120,Networks Private Circuits,Insight Direct (UK) Ltd,3771.63
201910,201910101585,R5120,Networks Private Circuits,Vodafone Limited,11876.21
201910,201910101586,R5120,Networks Private Circuits,Vodafone Limited,3958.16
201910,201910101587,R5120,Networks Private Circuits,Vodafone Limited,11876.21
201910,201910101597,R5315,Computer Hardware - Maintenance,Specialised Equipment Cleaning,685
201910,201910101607,R5010,Telephone Charges - Landlines,TalkTalk,2536.25
201910,201910101619,R5325,Computer Software - Maintenance,Nevis Systems Ltd,2009.61
201910,201910101632,C5320,Computer Software - Purchase,MHR International UK LTD,4000
201910,201910101633,R5320,Computer Software - Purchase,MHR International UK LTD,1002.74
201910,201910101646,R5320,Computer Software - Purchase,Axon Public Safety UK Limited,3875
201910,201910101693,R5120,Networks Private Circuits,Vodafone Limited,1776
201910,201910102111,R5325,Computer Software - Maintenance,Fortrus Limited,17496
201910,201910102152,R5215,Radio / Airwave Equipment - Maintenance,Airwave Solutions Limited (Subsidiary:- Kelvin Connect),74068.24
201910,201910102173,R5315,Computer Hardware - Maintenance,Stone Computers Ltd,784
201910,201910102223,R5325,Computer Software - Maintenance,Unisys Ltd,19396
201910,201910102326,R5325,Computer Software - Maintenance,Version 1 Solutions Limited,3908.63
201910,201910102330,R5345,Computer & Printer Consumables,Xerox UK Ltd,622.62
201910,201910102332,C6755,Consultants Fees - ICT,Finyx Consulting Limited,18500
201910,201910100483,R5630,Courier Services - Internal Deliveries,Cumbria County Council,3025.77
201910,201910100519,R4090,Redacted: The information is confidential or would attract an exemption under the Freedom of Information Act e.g. where disclosure could be prejudicial to the commercial interests of any person including the authority,Redacted: The information is confidential or would attract an exemption under the Freedom of Information Act e.g. where disclosure could be prejudicial to the commercial interests of any person including the authority,877.41
201910,201910100522,R4090,Redacted: The information is confidential or would attract an exemption under the Freedom of Information Act e.g. where disclosure could be prejudicial to the commercial interests of any person including the authority,Redacted: The information is confidential or would attract an exemption under the Freedom of Information Act e.g. where disclosure could be prejudicial to the commercial interests of any person including the authority,594.63
201910,201910100526,R4090,Redacted: The information is confidential or would attract an exemption under the Freedom of Information Act e.g. where disclosure could be prejudicial to the commercial interests of any person including the authority,Redacted: The information is confidential or would attract an exemption under the Freedom of Information Act e.g. where disclosure could be prejudicial to the commercial interests of any person including the authority,617.4
201910,201910100824,R6850,Hotel Accommodation - Training,Capita Travel and Events,800
201910,201910100836,R6850,Hotel Accommodation - Training,Capita Travel and Events,1000
201910,201910100839,R6850,Hotel Accommodation - Training,Capita Travel and Events,845
201910,201910100845,R6850,Hotel Accommodation - Training,Capita Travel and Events,550
201910,201910100850,R6840,Hotel Accommodation,Capita Travel and Events,500.5
201910,201910100855,R3745,Travel - Public Transport,Capita Travel and Events,564.07
201910,201910100880,R3745,Travel - Public Transport,Capita Travel and Events,1417.03
201910,201910100909,R6850,Hotel Accommodation - Training,Capita Travel and Events,1584
201910,201910100943,R3745,Travel - Public Transport,Capita Travel and Events,759.21
201910,201910100965,R6850,Hotel Accommodation - Training,Capita Travel and Events,550
201910,201910100971,R6850,Hotel Accommodation - Training,Capita Travel and Events,513.33
201910,201910100979,R6850,Hotel Accommodation - Training,Capita Travel and Events,2250
201910,201910100990,R6840,Hotel Accommodation,Capita Travel and Events,801.2
201910,201910101011,R6840,Hotel Accommodation,Capita Travel and Events,690
201910,201910101017,R6850,Hotel Accommodation - Training,Capita Travel and Events,1360
201910,201910101041,R6850,Hotel Accommodation - Training,Capita Travel and Events,1060
201910,201910101042,R6850,Hotel Accommodation - Training,Capita Travel and Events,2496
201910,201910101050,R6850,Hotel Accommodation - Training,Capita Travel and Events,4154.51
201910,201910101058,R6850,Hotel Accommodation - Training,Capita Travel and Events,545
201910,201910102049,R3605,Vehicle Hire - Training,Enterprise Rent-a-car UK Limited,566.82
201910,201910102191,R6840,Hotel Accommodation,Newton Rigg College [part of Askham Bryan],1152
201910,201910101034,R3745,Travel - Public Transport,Capita Travel and Events,574.4
201910,201910100482,R7090,Other Collaboration Payments,Cumbria County Council,3623
201910,201910100732,R1710,ICT Training,Blue Light Digital Ltd,6300
201911,201911101704,R5600,Postage Costs,Royal Mail,1083.87
201911,201911101710,R5600,Postage Costs,Royal Mail,918.11
201911,201911101804,R2600,Rent,Reed Rains,750
201911,201911101738,R3660,Redacted: The information is confidential or would attract an exemption under the Freedom of Information Act e.g. where disclosure could be prejudicial to the commercial interests of any person including the authority ,Redacted: The information is confidential or would attract an exemption under the Freedom of Information Act e.g. where disclosure could be prejudicial to the commercial interests of any person including the authority ,2234.5
201911,201911100019,B2302,Inventories/Stocks - General / Admin Equipment - Purchases,Arrow County Supplies,1072.93
201911,201911100024,B2302,Inventories/Stocks - General / Admin Equipment - Purchases,Arrow County Supplies,1030.34
201911,201911100501,B2312,Inventories/Stocks - Uniforms - Purchases,Needle Sports,833.14
201911,201911100525,R4400,Books & Publications,Hills Books,3570
201911,201911100623,B2302,Inventories/Stocks - General / Admin Equipment - Purchases,Scenesafe Previously (WA Products (UK) Ltd),572.78
201911,201911100625,B2302,Inventories/Stocks - General / Admin Equipment - Purchases,Scenesafe Previously (WA Products (UK) Ltd),653.6
201911,201911100922,B2312,Inventories/Stocks - Uniforms - Purchases,Endura Ltd,3103.75
201911,201911100923,B2312,Inventories/Stocks - Uniforms - Purchases,Endura Ltd,7650
201911,201911100924,B2312,Inventories/Stocks - Uniforms - Purchases,Endura Ltd,668.5
201911,201911100925,B2312,Inventories/Stocks - Uniforms - Purchases,Endura Ltd,1050.5
201911,201911101066,B2312,Inventories/Stocks - Uniforms - Purchases,Keela International Ltd,812
201911,201911101067,B2312,Inventories/Stocks - Uniforms - Purchases,Keela International Ltd,994.2
201911,201911101068,B2312,Inventories/Stocks - Uniforms - Purchases,Keela International Ltd,868.14
201911,201911101080,B2302,Inventories/Stocks - General / Admin Equipment - Purchases,Kays Medical Limited,921.5
201911,201911101083,R4550,Staff Clothing & Police Uniform,Ioma Clothing Company,589.5
201911,201911101087,R4550,Staff Clothing & Police Uniform,Ioma Clothing Company,589.5
201911,201911101111,B2312,Inventories/Stocks - Uniforms - Purchases,MC Products UK Ltd,1214.5
201911,201911101114,B2312,Inventories/Stocks - Uniforms - Purchases,MC Products UK Ltd,545
201911,201911101336,B2312,Inventories/Stocks - Uniforms - Purchases,Turner Virr & Co Ltd,862.75
201911,201911101398,R4555,Protective Clothing,Emblematic LTD,2741.5
201911,201911101419,B2312,Inventories/Stocks - Uniforms - Purchases,Mehler Vario System GmbH,4003.2
201911,201911101420,B2312,Inventories/Stocks - Uniforms - Purchases,Mehler Vario System GmbH,1660.1
201911,201911101421,B2312,Inventories/Stocks - Uniforms - Purchases,Mehler Vario System GmbH,535.4
201911,201911101422,B2312,Inventories/Stocks - Uniforms - Purchases,Mehler Vario System GmbH,6311.3
201911,201911101425,B2312,Inventories/Stocks - Uniforms - Purchases,Mehler Vario System GmbH,2224
201911,201911101426,B2312,Inventories/Stocks - Uniforms - Purchases,Mehler Vario System GmbH,978.4
201911,201911101429,B2312,Inventories/Stocks - Uniforms - Purchases,Mehler Vario System GmbH,1300.2
201911,201911101456,B2312,Inventories/Stocks - Uniforms - Purchases,Yaffy (MWUK Ltd),5512.5
201911,201911101457,B2312,Inventories/Stocks - Uniforms - Purchases,Yaffy (MWUK Ltd),2508.75
201911,201911101458,B2312,Inventories/Stocks - Uniforms - Purchases,Yaffy (MWUK Ltd),2275.85
201911,201911101459,B2312,Inventories/Stocks - Uniforms - Purchases,Yaffy (MWUK Ltd),690
201911,201911101718,B2312,Inventories/Stocks - Uniforms - Purchases,H-Squared (a trading division of UK Electric Ltd),1177
201911,201911101749,B2312,Inventories/Stocks - Uniforms - Purchases,Price Western Leather Co Ltd,1107.6
201911,201911101737,R4150,Print Unit - Printing Equipment & Maintenance,Glendale Presentation Solutions Ltd,510
201911,201911100642,R1260,Employee Insurance,AON UK Ltd,588.83
201911,201911100649,R3850,Vehicle Insurance,AON UK Ltd,1903.99
201911,201911100651,R1260,Employee Insurance,AON UK Ltd,1202.32
201911,201911100020,R2720,Other Cleaning & Domestic Equipment,Arrow County Supplies,1196.8
201911,201911100023,R2720,Other Cleaning & Domestic Equipment,Arrow County Supplies,749.2
201911,201911100026,R3110,Vehicle Maintenance - Tyres & Tubes,Goodyear Dunlop Tyres UK Limited,5569.14
201911,201911100034,R3510,Vehicle Fuel,Allstar Business Solutions Ltd,1967.26
201911,201911100049,R3130,Vehicle Maintenance - Work Done Externally,Ciceley Commercials,629.7
201911,201911100051,R3120,Vehicle Maintenance - Parts Purchase,Ciceley Commercials,703.5
201911,201911100058,R2030,Unplanned Building Services Security & Security Equipment Maintenance,Chubb Fire & Security Limited,566.58
201911,201911100064,R2030,Unplanned Building Services Security & Security Equipment Maintenance,Chubb Fire & Security Limited,544
201911,201911100065,R2030,Unplanned Building Services Security & Security Equipment Maintenance,Chubb Fire & Security Limited,734.73
201911,201911100069,R2700,Cleaning Contract,Bulloughs Cleaning Services Ltd,13144.49
201911,201911100070,R2700,Cleaning Contract,Bulloughs Cleaning Services Ltd,3742.03
201911,201911100071,R2700,Cleaning Contract,Bulloughs Cleaning Services Ltd,600.98
201911,201911100073,R2700,Cleaning Contract,Bulloughs Cleaning Services Ltd,5127.48
201911,201911100075,R2700,Cleaning Contract,Bulloughs Cleaning Services Ltd,2423.1
201911,201911100076,R2700,Cleaning Contract,Bulloughs Cleaning Services Ltd,3665.94
201911,201911100077,R2700,Cleaning Contract,Bulloughs Cleaning Services Ltd,1502.43
201911,201911100079,R2700,Cleaning Contract,Bulloughs Cleaning Services Ltd,600.97
201911,201911100085,R2700,Cleaning Contract,Bulloughs Cleaning Services Ltd,1502.43
201911,201911100097,R7006,North West Ambulance Service - Estates Management Collaboration,BID Group Ltd,533
201911,201911100102,R7006,North West Ambulance Service - Estates Management Collaboration,BID Group Ltd,1235
201911,201911100136,R4540,Canteen - Hot Drink Machines,BNP Paribas Leasing Solutions Ltd,519.99
201911,201911100155,R4520,Canteen - Purchase of Food / Ingredients,PFD (Carlisle) Ltd t/a Pioneer Foodservice,1113.57
201911,201911100156,R4520,Canteen - Purchase of Food / Ingredients,PFD (Carlisle) Ltd t/a Pioneer Foodservice,725.35
201911,201911100157,R4520,Canteen - Purchase of Food / Ingredients,PFD (Carlisle) Ltd t/a Pioneer Foodservice,992.53
201911,201911100159,R4520,Canteen - Purchase of Food / Ingredients,PFD (Carlisle) Ltd t/a Pioneer Foodservice,1139.44
201911,201911100160,R4520,Canteen - Purchase of Food / Ingredients,PFD (Carlisle) Ltd t/a Pioneer Foodservice,1094.52
201911,201911100161,R4520,Canteen - Purchase of Food / Ingredients,PFD (Carlisle) Ltd t/a Pioneer Foodservice,979.55
201911,201911100188,R3460,Accident Damage (Below Insurance Threshold),Thompson Accident Repair Centre,2562.72
201911,201911100189,R3460,Accident Damage (Below Insurance Threshold),Thompson Accident Repair Centre,1000
201911,201911100196,R2070,Unplanned Building Services Internal Other,Contract Flooring (Cumbria) Ltd,590
201911,201911100199,C2830,Professional Fees,Unwin Jones Partnership,2500
201911,201911100206,R7006,North West Ambulance Service - Estates Management Collaboration,Dawson Electrical Services Ltd,1150
201911,201911100215,R3130,Vehicle Maintenance - Work Done Externally,Lloyd Motorrad,630.99
201911,201911100225,R3120,Vehicle Maintenance - Parts Purchase,Lloyd Motorrad,711.82
201911,201911100227,R3120,Vehicle Maintenance - Parts Purchase,Lloyd Motorrad,548.32
201911,201911100236,R2080,Unplanned Building Services External Other,Lambert-Gill Ltd,540
201911,201911100238,R2150,Unplanned Building Maintenance Electrics,JJ Group (Contracting) Ltd,1388.55
201911,201911100241,R7006,North West Ambulance Service - Estates Management Collaboration,Cumbria Mechanical Plumbing Ltd,830
201911,201911100242,R2010,Unplanned Building Services Boiler & Heating Plant,Cumbria Mechanical Plumbing Ltd,636.2
201911,201911100245,R7006,North West Ambulance Service - Estates Management Collaboration,Cumbria Mechanical Plumbing Ltd,1184
201911,201911100252,R2060,Unplanned Building Services Environmental Services/Plumbing,Cumbria Mechanical Plumbing Ltd,543
201911,201911100254,R2160,Unplanned Building Maintenance Environmental Services/Plumbing,Cumbria Mechanical Plumbing Ltd,3280
201911,201911100262,R7006,North West Ambulance Service - Estates Management Collaboration,JJ Group (Contracting) Ltd,892.52
201911,201911100337,R2610,Estates Leases,Walton Goodland Limited,1636.72
201911,201911100389,R2610,Estates Leases,Cumbria County Council,1065.9
201911,201911100456,R2640,Room Hire,Rookin House Activity Centre,1200
201911,201911100489,R3120,Vehicle Maintenance - Parts Purchase,David Hayton Ltd,1039.17
201911,201911100493,R7006,North West Ambulance Service - Estates Management Collaboration,Metcalfe Plant & Tool Ltd,2978
201911,201911100494,R7006,North West Ambulance Service - Estates Management Collaboration,Metcalfe Plant & Tool Ltd,3320
201911,201911100498,R2210,Planned Survey External Maintenance,Nicol Landscapes Ltd,4545
201911,201911100499,R2070,Unplanned Building Services Internal Other,Keswick Superglaze Ltd,899.6
201911,201911100521,R7006,North West Ambulance Service - Estates Management Collaboration,John Sandelands Ltd,1870.44
201911,201911100573,C2245,Planned Survey Alterations & Improvements,Thomas Armstrong (Construction) Ltd,262423.91
201911,201911100574,C2245,Planned Survey Alterations & Improvements,Thomas Armstrong (Construction) Ltd,431559.67
201911,201911100580,R2120,Unplanned Building Maintenance Non Structural Maintenance,Frederick Potts & Sons Ltd,2572
201911,201911100581,R2205,Planned Survey Non Structural Maintenance,Frederick Potts & Sons Ltd,790
201911,201911100583,R2610,Estates Leases,Frederick Potts & Sons Ltd,787.5
201911,201911100592,C2830,Professional Fees,Baker Mallett LLP,827.24
201911,201911100604,R7006,North West Ambulance Service - Estates Management Collaboration,Margrange Ltd,996.25
201911,201911100613,C2830,Professional Fees,Tweddell & Slater Limited,852.53
201911,201911100919,R3980,Vehicle Road Fund Licenses,Post Office Counters Ltd,3600
201911,201911100929,R2500,Oil,Scottish Fuels,7666.25
201911,201911100930,R2500,Oil,Scottish Fuels,5163.55
201911,201911100938,R3010,Workshop Equipment & Tools - Purchases,Autoparts Garage Services,4580.87
201911,201911100939,R3010,Workshop Equipment & Tools - Purchases,Autoparts Garage Services,4580.87
201911,201911100944,R3010,Workshop Equipment & Tools - Purchases,Autoparts Garage Services,2462.31
201911,201911100945,R3010,Workshop Equipment & Tools - Purchases,Autoparts Garage Services,4288.12
201911,201911100946,R3010,Workshop Equipment & Tools - Purchases,Autoparts Garage Services,-4580.87
201911,201911100947,R3010,Workshop Equipment & Tools - Purchases,Autoparts Garage Services,4980.87
201911,201911100948,R3010,Workshop Equipment & Tools - Purchases,Autoparts Garage Services,-4580.87
201911,201911100949,R3010,Workshop Equipment & Tools - Purchases,Autoparts Garage Services,4980.87
201911,201911100987,R3120,Vehicle Maintenance - Parts Purchase,Arnold Clark Automobiles Ltd,808.17
201911,201911101009,R2510,Electricity,British Gas Trading,5660.83
201911,201911101043,R3210,Police Vehicle Recovery & Transport,FMG Support (RRRM) Ltd,2438.3
201911,201911101056,R2730,Refuse,Biffa Waste Services Ltd,655.6
201911,201911101171,R2265,Planned Servicing Fire Systems,FTS Fire & Security Ltd,706.5
201911,201911101176,R2240,Planned Survey Safety Works,FTS Fire & Security Ltd,2498
201911,201911101177,R2240,Planned Survey Safety Works,FTS Fire & Security Ltd,576
201911,201911101178,R2185,Unplanned Building Maintenance Internal Structures,FTS Fire & Security Ltd,2455.5
201911,201911101179,R2265,Planned Servicing Fire Systems,FTS Fire & Security Ltd,5550.4
201911,201911101180,R2265,Planned Servicing Fire Systems,FTS Fire & Security Ltd,1038
201911,201911101182,R2265,Planned Servicing Fire Systems,FTS Fire & Security Ltd,2016.7
201911,201911101265,R2610,Estates Leases,Millom Network Centre,1706.25
201911,201911101285,C3900,Vehicle Purchases - Capital,Rayrigg Motors,11687.7
201911,201911101286,C3900,Vehicle Purchases - Capital,Rayrigg Motors,11687.7
201911,201911101287,C3900,Vehicle Purchases - Capital,Rayrigg Motors,11687.7
201911,201911101369,R2830,Professional Fees,DSSR Consulting Engineers,1360
201911,201911101370,R2740,Destruction of Confidential Waste,Shred-it (Europe) Ltd,1118
201911,201911101386,R2610,Estates Leases,Ulverston Properties Ltd,820.83
201911,201911101444,R2290,Planned Servicing General Maintenance,Zip Heaters UK Ltd,1127.7
201911,201911101446,R2290,Planned Servicing General Maintenance,Zip Heaters UK Ltd,598.5
201911,201911101447,R2290,Planned Servicing General Maintenance,Zip Heaters UK Ltd,1732.5
201911,201911101509,R2550,Metered Water,Castle Water Limited,3993.61
201911,201911101510,R2565,Sewerage & Environmental Services,Castle Water Limited,7872.95
201911,201911101511,R2550,Metered Water,Castle Water Limited,8135.45
201911,201911101512,R2565,Sewerage & Environmental Services,Castle Water Limited,4124.45
201911,201911101514,R2510,Electricity,EDF Energy,6217.01
201911,201911101516,R2510,Electricity,EDF Energy,3129.61
201911,201911101518,R2510,Electricity,EDF Energy,17310.17
201911,201911101519,R2530,Climate Change Levy,EDF Energy,1108.63
201911,201911101520,R2510,Electricity,EDF Energy,11322.46
201911,201911101521,R2530,Climate Change Levy,EDF Energy,731.11
201911,201911101721,R7006,North West Ambulance Service - Estates Management Collaboration,Countrywide Grounds Maintenance Ltd,641.66
201911,201911101790,R3120,Vehicle Maintenance - Parts Purchase,Lloyd Motors Ltd,505.37
201911,201911101794,C3900,Vehicle Purchases - Capital,BMW  Group (GB) Ltd,16826.88
201911,201911101796,C3900,Vehicle Purchases - Capital,BMW  Group (GB) Ltd,16826.88
201911,201911101798,C3900,Vehicle Purchases - Capital,BMW  Group (GB) Ltd,16826.88
201911,201911101800,C3900,Vehicle Purchases - Capital,BMW  Group (GB) Ltd,16826.88
201911,201911101802,C3900,Vehicle Purchases - Capital,BMW  Group (GB) Ltd,16826.88
201911,201911101805,R2170,Unplanned Building Maintenance External Maintenance,Burtonwood Generator & Switchgear Services Limited,756.43
201911,201911101833,R3510,Vehicle Fuel,Allstar Business Solutions Ltd,72608.48
201911,201911101835,R3510,Vehicle Fuel,Allstar Business Solutions Ltd,1237.74
201911,201911101836,R3510,Vehicle Fuel,Allstar Business Solutions Ltd,747.7
201911,201911101838,R3510,Vehicle Fuel,Allstar Business Solutions Ltd,1092.41
201911,201911101841,R3510,Vehicle Fuel,Allstar Business Solutions Ltd,2389.44
201911,201911101842,R3510,Vehicle Fuel,Allstar Business Solutions Ltd,1157.13
201911,201911101843,R3510,Vehicle Fuel,Allstar Business Solutions Ltd,2345.64
201911,201911101844,R3510,Vehicle Fuel,Allstar Business Solutions Ltd,1684.71
201911,201911101846,R3510,Vehicle Fuel,Allstar Business Solutions Ltd,-7314.32
201911,201911100001,R1630,Other Operational Training,"Blauer Tactical Systems, Inc.",793.3
201911,201911100002,R1720,Other Support Function Training,"Blauer Tactical Systems, Inc.",600.35
201911,201911101125,R1800,Further Education,University of Cumbria,2200
201911,201911101126,R1720,Other Support Function Training,University of Cumbria,550
201911,201911101127,R1720,Other Support Function Training,University of Cumbria,550
201911,201911101128,R1720,Other Support Function Training,University of Cumbria,550
201911,201911101129,R1720,Other Support Function Training,University of Cumbria,550
201911,201911101130,R1720,Other Support Function Training,University of Cumbria,550
201911,201911101379,R1800,Further Education,The Open University,2000
201911,201911101526,R1630,Other Operational Training,CJL Consultancy (Sole Trader C Lillicrap),800
201911,201911101701,R1720,Other Support Function Training,Skills for Justice (Enterprise) Ltd - SFJ Awards,680
201911,201911101859,R1830,Training Equipment & Materials,Newitt & Co Ltd,1293.2
201911,201911100751,R3745,Travel - Public Transport,Capita Travel and Events,859.3
201911,201911100752,R3745,Travel - Public Transport,Capita Travel and Events,855.7
201911,201911101691,R1152,Gym Equipment - Lease,Investec Asset Finance Plc,2121
201911,201911100662,R6660,Counsel Fees,Trinity Chambers (Newcastle-upon-Tyne),588
201911,201911101069,B4003,Redacted: Disclosure of information would breach the Data Protection Act 1998 ,Redacted: Disclosure of information would breach the Data Protection Act 1998 ,10000
201911,201911100100,Z2123,Returned Payments - Clearance in the Year (Expenditure),BID Group Ltd,996
201911,201911100392,R6757,Consultants Fees - Finance,Cumbria County Council,1500
201911,201911100393,R6757,Consultants Fees - Finance,Cumbria County Council,1500
201911,201911100396,Z2114,Police Property Act Fund - Transactions Money Out (Total Expenditure),Carlisle Hocky Club,2500
201911,201911100641,R1260,Employee Insurance,AON UK Ltd,158986.53
201911,201911100643,R7390,Other Insurance,AON UK Ltd,11709.78
201911,201911100644,R7390,Other Insurance,AON UK Ltd,10084.48
201911,201911100645,R7390,Other Insurance,AON UK Ltd,38939.21
201911,201911100646,R7390,Other Insurance,AON UK Ltd,5755.11
201911,201911100647,R3860,Boat Insurance,AON UK Ltd,764.14
201911,201911100648,R3850,Vehicle Insurance,AON UK Ltd,125283.21
201911,201911100650,R1260,Employee Insurance,AON UK Ltd,11054.96
201911,201911100652,R7390,Other Insurance,AON UK Ltd,5417.44
201911,201911100653,R1260,Employee Insurance,AON UK Ltd,3115.79
201911,201911100655,R2980,Property Insurance,AON UK Ltd,155609.33
201911,201911100656,R7390,Other Insurance,AON UK Ltd,7367.91
201911,201911100657,R7390,Other Insurance,AON UK Ltd,652.61
201911,201911100659,R7390,Other Insurance,AON UK Ltd,6100
201911,201911100697,R6710,Subscriptions,Police and Crime Commissioner for Cheshire,2000
201911,201911101338,R7380,Settlement of 3rd Party Claims for damage to property / vehicles,Gallagher Bassett International Ltd,3361.1
201911,201911101385,R6824,NatWest Corporate Card Payments,Natwest Corporate Card,4211.55
201911,201911101406,R7040,Payroll Services,MHR International UK LTD,15856.5
201911,201911101407,R7040,Payroll Services,MHR International UK LTD,650
201911,201911101413,R6830,External Audit Fee,Grant Thornton UK LLP,4500
201911,201911101688,R6757,Consultants Fees - Finance,XPS Administration Limited T/A XPS Administration,5000
201911,201911101689,R6757,Consultants Fees - Finance,XPS Administration Limited T/A XPS Administration,6246
201911,201911101690,R7042,Pension Services,XPS Administration Limited T/A XPS Administration,8396
201911,201911100624,R5810,Operational Equipment - DNA,Scenesafe Previously (WA Products (UK) Ltd),1183
201911,201911100633,R4780,CSI Consumables,Scenesafe Previously (WA Products (UK) Ltd),502
201911,201911100664,R4710,Forensic Analysis - Serious Crime,Key Forensic Services Ltd (Orange UK Holdings Ltd),561.7
201911,201911100665,R4710,Forensic Analysis - Serious Crime,Key Forensic Services Ltd (Orange UK Holdings Ltd),1429.5
201911,201911100666,R4710,Forensic Analysis - Serious Crime,Key Forensic Services Ltd (Orange UK Holdings Ltd),3060.75
201911,201911100667,R4715,Forensic Analysis - Volume Crime,Key Forensic Services Ltd (Orange UK Holdings Ltd),1663.35
201911,201911100668,R4715,Forensic Analysis - Volume Crime,Key Forensic Services Ltd (Orange UK Holdings Ltd),556.15
201911,201911100669,R4715,Forensic Analysis - Volume Crime,Key Forensic Services Ltd (Orange UK Holdings Ltd),990.8
201911,201911100670,R4715,Forensic Analysis - Volume Crime,Key Forensic Services Ltd (Orange UK Holdings Ltd),1680.72
201911,201911100671,R4715,Forensic Analysis - Volume Crime,Key Forensic Services Ltd (Orange UK Holdings Ltd),1519.8
201911,201911100673,R4705,Forensic Analysis - Over Prescribed Limit,Key Forensic Services Ltd (Orange UK Holdings Ltd),5101.84
201911,201911100674,R4705,Forensic Analysis - Over Prescribed Limit,Key Forensic Services Ltd (Orange UK Holdings Ltd),2145.28
201911,201911100675,R4710,Forensic Analysis - Serious Crime,Key Forensic Services Ltd (Orange UK Holdings Ltd),3412.65
201911,201911100676,R4715,Forensic Analysis - Volume Crime,Key Forensic Services Ltd (Orange UK Holdings Ltd),1084.4
201911,201911100677,R4710,Forensic Analysis - Serious Crime,Key Forensic Services Ltd (Orange UK Holdings Ltd),1791.85
201911,201911100679,R4710,Forensic Analysis - Serious Crime,Key Forensic Services Ltd (Orange UK Holdings Ltd),3027.25
201911,201911100680,R4715,Forensic Analysis - Volume Crime,Key Forensic Services Ltd (Orange UK Holdings Ltd),1319.1
201911,201911100681,R4715,Forensic Analysis - Volume Crime,Key Forensic Services Ltd (Orange UK Holdings Ltd),636.45
201911,201911100682,R4715,Forensic Analysis - Volume Crime,Key Forensic Services Ltd (Orange UK Holdings Ltd),1624
201911,201911100683,R4715,Forensic Analysis - Volume Crime,Key Forensic Services Ltd (Orange UK Holdings Ltd),1612.18
201911,201911100684,R4715,Forensic Analysis - Volume Crime,Key Forensic Services Ltd (Orange UK Holdings Ltd),896.98
201911,201911100686,R4705,Forensic Analysis - Over Prescribed Limit,Key Forensic Services Ltd (Orange UK Holdings Ltd),978.75
201911,201911100687,R4705,Forensic Analysis - Over Prescribed Limit,Key Forensic Services Ltd (Orange UK Holdings Ltd),1935.75
201911,201911100688,R4705,Forensic Analysis - Over Prescribed Limit,Key Forensic Services Ltd (Orange UK Holdings Ltd),826.5
201911,201911100887,R5950,Redacted: Disclosure of information would breach the Data Protection Act 1998 ,Redacted: Disclosure of information would breach the Data Protection Act 1998 ,580.42
201911,201911100918,R5950,Redacted: Disclosure of information would breach the Data Protection Act 1998 ,Redacted: Disclosure of information would breach the Data Protection Act 1998 ,740.93
201911,201911100920,R1720,Other Support Function Training,Cellebrite Uk Ltd,10400
201911,201911101081,R4700,Redacted: Disclosure of information would breach the Data Protection Act 1998 ,Redacted: Disclosure of information would breach the Data Protection Act 1998 ,1868.35
201911,201911101119,R7065,TITAN - North West Collaboration,Police and Crime Commissioner for Merseyside,29700.47
201911,201911101120,R7065,TITAN - North West Collaboration,Police and Crime Commissioner for Merseyside,12649.95
201911,201911101121,R7065,TITAN - North West Collaboration,Police and Crime Commissioner for Merseyside,32650.12
201911,201911101122,R7065,TITAN - North West Collaboration,Police and Crime Commissioner for Merseyside,64177.72
201911,201911101123,R7065,TITAN - North West Collaboration,Police and Crime Commissioner for Merseyside,42561.32
201911,201911101149,R5950,Redacted: Disclosure of information would breach the Data Protection Act 1998 ,Redacted: Disclosure of information would breach the Data Protection Act 1998 ,602.73
201911,201911101288,R4845,Redacted: Disclosure of information would breach the Data Protection Act 1998 ,Redacted: Disclosure of information would breach the Data Protection Act 1998 ,5600
201911,201911101289,R5867,Operational Equipment - Maintenance,Nexia Scientific Ltd,680
201911,201911101355,R4725,Photographic & Imaging,PFD Ltd (Professional Film Direct Ltd),1680
201911,201911101384,R5950,Redacted: Disclosure of information would breach the Data Protection Act 1998 ,Redacted: Disclosure of information would breach the Data Protection Act 1998 ,711.04
201911,201911101412,R5940,Redacted: The information is confidential or would attract an exemption under the Freedom of Information Act e.g. where disclosure could be prejudicial to the commercial interests of any person including the authority ,Redacted: The information is confidential or would attract an exemption under the Freedom of Information Act e.g. where disclosure could be prejudicial to the commercial interests of any person including the authority ,700
201911,201911101438,R4735,Communication Auto Services - OS,Home Office,19663.44
201911,201911101464,R5815,Operational Equipment - Hi-Tech. Crime,Forensic Access Ltd,550
201911,201911101466,R4710,Forensic Analysis - Serious Crime,Orchid Cellmark Ltd,649.6
201911,201911101467,R4710,Forensic Analysis - Serious Crime,Orchid Cellmark Ltd,877.25
201911,201911101468,R4715,Forensic Analysis - Volume Crime,Orchid Cellmark Ltd,1160
201911,201911101527,R1610,CID Training,Sancus Solutions Ltd,625
201911,201911101726,R1610,CID Training,College of Policing (NPIA),569
201911,201911101727,R1630,Other Operational Training,College of Policing (NPIA),569
201911,201911101729,R1610,CID Training,College of Policing (NPIA),638.5
201911,201911101730,R1610,CID Training,College of Policing (NPIA),638.5
201911,201911101731,R1610,CID Training,College of Policing (NPIA),824.5
201911,201911101732,R1610,CID Training,College of Policing (NPIA),4670
201911,201911101735,R7135,Redacted: The information is confidential or would attract an exemption under the Freedom of Information Act e.g. where disclosure could be prejudicial to the commercial interests of any person including the authority ,Redacted: The information is confidential or would attract an exemption under the Freedom of Information Act e.g. where disclosure could be prejudicial to the commercial interests of any person including the authority ,3197.25
201911,201911101782,R4720,Forensic Analysis - PACE / DNA,Eurofins Forensic Services Ltd,2064.42
201911,201911101783,R4720,Forensic Analysis - PACE / DNA,Eurofins Forensic Services Ltd,1787.97
201911,201911101787,R6750,Consultants Fees - Other,United Kingdom Accreditation Service (UKAS),2943.25
201911,201911100138,R1126,GP Records,Platinum Occupational Health Ltd,1500
201911,201911101005,R1126,GP Records,Business Health,625
201911,201911101077,R1132,Immunisations & Vaccinations,Kays Medical Limited,1589.63
201911,201911101148,R1110,Redacted: The information is confirdential or would attract an exemption under the Freedom of Information Act e.g. where disclosure could be prejudicial to the commercial interests of any person including the authority,Redacted: The information is confirdential or would attract an exemption under the Freedom of Information Act e.g. where disclosure could be prejudicial to the commercial interests of any person including the authority,575
201911,201911101340,R0500,Agency Staff,Comensura Ltd,738.8
201911,201911101341,R0500,Agency Staff,Comensura Ltd,1094
201911,201911101342,R0500,Agency Staff,Comensura Ltd,725.98
201911,201911101344,R0500,Agency Staff,Comensura Ltd,722.63
201911,201911101345,R0500,Agency Staff,Comensura Ltd,526.49
201911,201911101346,R0500,Agency Staff,Comensura Ltd,2264.05
201911,201911101414,R1136,Blood Screening,Nationwide Pathology Limited,552
201911,201911101692,R1138,Psychological Screening,NTA Psychological Screening Ltd,1940
201911,201911101728,R1070,External Assessment Centres,College of Policing (NPIA),10128.76
201911,201911101733,R1880,Conference & Seminar Fees,College of Policing (NPIA),824.5
201911,201911100009,R5980,Firearms Equipment,Law Enforcement International Ltd,7280
201911,201911100033,R5912,Police Dogs - Feed,Royal Canin (Crown Pet Foods Ltd),1809.62
201911,201911100093,R5980,Firearms Equipment,Shield International,950
201911,201911100384,R1630,Other Operational Training,System People Limited T/A SP Training,2000
201911,201911100478,R5916,Police Dogs - Vets Fees,Frame & Swift,951.52
201911,201911100544,R4625,Detained Persons - Laundry,Shortridge Laundry,653.7
201911,201911100545,R4625,Detained Persons - Laundry,Shortridge Laundry,626.69
201911,201911100547,R6702,Confiscated Animal Costs,Whinmill Farm,4335.53
201911,201911100548,R6702,Confiscated Animal Costs,Whinmill Farm,3375
201911,201911100632,R5835,Operational Equipment - Testing Kits & Consumables,Scenesafe Previously (WA Products (UK) Ltd),585
201911,201911100639,R4900,Custody Medical Contract,G4S Health Services (UK) Ltd,107330.2
201911,201911100876,R4625,Detained Persons - Laundry,Shortridge Laundry,979.15
201911,201911101044,R6610,Vehicle Recovery Costs,FMG Support (RRRM) Ltd,2498.5
201911,201911101048,R5980,Firearms Equipment,Viking Arms Ltd,13050
201911,201911101117,R4600,Detained Persons - Meals / Refreshments,Bidfood,626.01
201911,201911101153,R6702,Confiscated Animal Costs,Flatt Farm Boarding Kennels,2460
201911,201911101154,R6702,Confiscated Animal Costs,Flatt Farm Boarding Kennels,2745
201911,201911101155,R6702,Confiscated Animal Costs,Flatt Farm Boarding Kennels,1359
201911,201911101156,R6702,Confiscated Animal Costs,Flatt Farm Boarding Kennels,1426.12
201911,201911101157,R6702,Confiscated Animal Costs,Flatt Farm Boarding Kennels,594.34
201911,201911101158,R6702,Confiscated Animal Costs,Flatt Farm Boarding Kennels,2745
201911,201911101347,R4620,Detained Persons - Consumables,Thomas Kneale & Co Ltd,799.6
201911,201911101357,R5790,Operational Equipment - Audio / Video Equipment,Softcat PLC,1611.63
201911,201911101359,R1630,Redacted: Disclosure of information would breach the Data Protection Act Disclosure of information would breach the Data Protection Act 1998998,Redacted: Disclosure of information would breach the Data Protection Act Disclosure of information would breach the Data Protection Act 1998998,600
201911,201911101365,R5865,Operational Equipment - Other,BOC Gases,521
201911,201911101403,R5910,Redacted: Disclosure of information would breach the Data Protection Act Disclosure of information would breach the Data Protection Act 1998998,Redacted: Disclosure of information would breach the Data Protection Act Disclosure of information would breach the Data Protection Act 1998998,750
201911,201911101417,R5980,Firearms Equipment,Axon Public Safety UK Limited,2750
201911,201911101439,R5790,Operational Equipment - Audio / Video Equipment,Wex Photo Video,902.71
201911,201911101453,R4950,Interpreters Fees - Face to Face,Capita Translation and Interpreting (Applied Language Solutions Ltd),3675.4
201911,201911101454,R4955,Interpreters Fees - Telephone,Capita Translation and Interpreting (Applied Language Solutions Ltd),882.09
201911,201911101556,R5835,Operational Equipment - Testing Kits & Consumables,D TEC International Ltd,1811
201911,201911101557,R5835,Operational Equipment - Testing Kits & Consumables,D TEC International Ltd,1811
201911,201911101558,R5835,Operational Equipment - Testing Kits & Consumables,D TEC International Ltd,1811
201911,201911101559,R1630,Other Operational Training,The Atacc Group (Promedsol),3960
201911,201911101560,R1720,Other Support Function Training,The Atacc Group (Promedsol),5280
201911,201911101693,R1630,Other Operational Training,Serco Ltd,3850
201911,201911101702,R1630,Other Operational Training,Police and Crime Commissioner for South Yorkshire,2500
201911,201911101722,R5980,Firearms Equipment,Edgar Brothers,1025
201911,201911101740,R1720,Other Support Function Training,Police Crime Prevention Initiatives Ltd,4000
201911,201911101741,R1720,Other Support Function Training,Police Crime Prevention Initiatives Ltd,4000
201911,201911101742,R1720,Other Support Function Training,Police Crime Prevention Initiatives Ltd,4000
201911,201911101752,R5865,Operational Equipment - Other,Sigma Security Devices Ltd,540
201911,201911100560,R5965,Crime Prevention - Labour Costs / Fitting,Mark Tubman (Locksmith & Joinery),684
201911,201911100561,R5965,Crime Prevention - Labour Costs / Fitting,Mark Tubman (Locksmith & Joinery),1750
201911,201911100562,R5965,Crime Prevention - Labour Costs / Fitting,Mark Tubman (Locksmith & Joinery),1450
201911,201911100565,R5965,Crime Prevention - Labour Costs / Fitting,Mark Tubman (Locksmith & Joinery),1480
201911,201911100617,R5965,Crime Prevention - Labour Costs / Fitting,Solon Security Limited,3961.85
201911,201911100142,R6785,Contributions - PCC Commissioning Services,Cumbria Gateway,10445.25
201911,201911100373,R5720,Member Attendance Allowances,Legally Qualified Chair,1098
201911,201911100374,R5730,Other Allowances,Legally Qualified Chair,525
201911,201911100390,R6785,Contributions - PCC Commissioning Services,Cumbria County Council,32500
201911,201911100470,R6785,Contributions - PCC Commissioning Services,Cumbria Partnership NHS Foundation Trust,42000
201911,201911100599,R6785,Contributions - PCC Commissioning Services,Time to Change (West Cumbria) Project CIC,9930.25
201911,201911100600,R6785,Contributions - PCC Commissioning Services,Time to Change (West Cumbria) Project CIC,9930.25
201911,201911100640,R4920,SARC Doctors,G4S Health Services (UK) Ltd,19172.42
201911,201911101135,R6785,Contributions - PCC Commissioning Services,Resource Creatives Enterprises Ltd,692.44
201911,201911101214,R6785,Contributions - PCC Commissioning Services,Women's Community Matters,7221.34
201911,201911101215,R6785,Contributions - PCC Commissioning Services,Women's Community Matters,7260.4
201911,201911101266,R6785,Contributions - PCC Commissioning Services,Brathay Trust,4303.25
201911,201911101267,R6785,Contributions - PCC Commissioning Services,Brathay Trust,4303.25
201911,201911101268,R6785,Contributions - PCC Commissioning Services,Brathay Trust,4303.25
201911,201911101548,R5720,Member Attendance Allowances,Christopher Lindley,600
201911,201911101696,R6785,Contributions - PCC Commissioning Services,Remedi-Restorative Services,9041.67
201911,201911101697,R6785,Contributions - PCC Commissioning Services,Remedi-Restorative Services,2600
201911,201911100004,R5015,Telephone Charges - Mobile Phones,EE Limited,4594.89
201911,201911100005,R5015,Telephone Charges - Mobile Phones,EE Limited,4604.12
201911,201911100032,R5325,Computer Software - Maintenance,Medialogix Limited,1350
201911,201911100109,C5110,Networks Hardware Purchase,BT Business Direct Ltd,535.71
201911,201911100699,C5310,Computer Hardware - Purchase,Able Systems Ltd,2188.65
201911,201911100879,R5325,Computer Software - Maintenance,Capita Secure Information Solutions Ltd,163125
201911,201911100880,R5325,Computer Software - Maintenance,Capita Secure Information Solutions Ltd,4335.43
201911,201911101040,C5110,Networks Hardware Purchase,EE Limited,222300
201911,201911101041,C5110,Networks Hardware Purchase,EE Limited,319200
201911,201911101049,R5325,Computer Software - Maintenance,Northgate Public Services (UK) Ltd,18116.76
201911,201911101305,R1710,ICT Training,QA Training Ltd,6800
201911,201911101358,C5310,Computer Hardware - Purchase,Softcat PLC,5300.12
201911,201911101361,R5340,Computer Sundry Purchases,Rocom Ltd (Nimans),1806.95
201911,201911101368,R5315,Computer Hardware - Maintenance,Specialised Equipment Cleaning,630
201911,201911101377,R5010,Telephone Charges - Landlines,TalkTalk,2573.2
201911,201911101378,R5325,Computer Software - Maintenance,Digital Image Booth Limited,3600
201911,201911101408,C5325,Computer Software - Services,MHR International UK LTD,26178
201911,201911101462,R5120,Networks Private Circuits,Vodafone Limited,1776
201911,201911101463,R5120,Networks Private Circuits,Vodafone Limited,1776
201911,201911101505,R5010,Telephone Charges - Landlines,British Telecom,11808
201911,201911101508,R5120,Networks Private Circuits,British Telecom,787.6
201911,201911101723,R5215,Radio / Airwave Equipment - Maintenance,Airwave Solutions Limited (Subsidiary:- Kelvin Connect),71392.57
201911,201911101734,R5325,Computer Software - Maintenance,Volvo Car UK Ltd,595
201911,201911101739,C5310,Computer Hardware - Purchase,Stone Computers Ltd,57685
201911,201911101855,C6755,Consultants Fees - ICT,Simpson Associates Information Services Limited,1683.55
201911,201911100017,R5600,Postage Costs,Pitney Bowes Ltd,1856.96
201911,201911100391,R5630,Courier Services - Internal Deliveries,Cumbria County Council,3306.84
201911,201911100409,R4090,Redacted: The information is confidential or would attract an exemption under the Freedom of Information Act e.g. where disclosure could be prejudicial to the commercial interests of any person including the authority,Redacted: The information is confidential or would attract an exemption under the Freedom of Information Act e.g. where disclosure could be prejudicial to the commercial interests of any person including the authority,572.22
201911,201911100410,R4090,Redacted: The information is confidential or would attract an exemption under the Freedom of Information Act e.g. where disclosure could be prejudicial to the commercial interests of any person including the authority,Redacted: The information is confidential or would attract an exemption under the Freedom of Information Act e.g. where disclosure could be prejudicial to the commercial interests of any person including the authority,589.17
201911,201911100411,R4090,Redacted: The information is confidential or would attract an exemption under the Freedom of Information Act e.g. where disclosure could be prejudicial to the commercial interests of any person including the authority,Redacted: The information is confidential or would attract an exemption under the Freedom of Information Act e.g. where disclosure could be prejudicial to the commercial interests of any person including the authority,858.96
201911,201911100467,R6870,Subsistence - Training,Brooklands Guest House,540
201911,201911100740,R6850,Hotel Accommodation - Training,Capita Travel and Events,887.51
201911,201911100743,R3745,Travel - Public Transport,Capita Travel and Events,603.6
201911,201911100762,R6850,Hotel Accommodation - Training,Capita Travel and Events,2261.66
201911,201911100764,R6850,Hotel Accommodation - Training,Capita Travel and Events,562
201911,201911100787,R6850,Hotel Accommodation - Training,Capita Travel and Events,509
201911,201911100789,R6850,Hotel Accommodation - Training,Capita Travel and Events,879
201911,201911100790,R6850,Hotel Accommodation - Training,Capita Travel and Events,696.75
201911,201911100802,R3745,Travel - Public Transport,Capita Travel and Events,620.55
201911,201911100821,R6850,Hotel Accommodation - Training,Capita Travel and Events,1385
201911,201911100849,R6850,Hotel Accommodation - Training,Capita Travel and Events,3355
201911,201911100850,R6850,Hotel Accommodation - Training,Capita Travel and Events,7162.17
201911,201911100862,R3745,Travel - Public Transport,Capita Travel and Events,568
201911,201911100870,R6850,Hotel Accommodation - Training,Capita Travel and Events,2834
201911,201911100871,R6850,Hotel Accommodation - Training,Capita Travel and Events,2926.66
201911,201911100873,R6850,Hotel Accommodation - Training,Capita Travel and Events,798
201911,201911100874,R6850,Hotel Accommodation - Training,Capita Travel and Events,1232
201911,201911101667,R3605,Vehicle Hire - Training,Enterprise Rent-a-car UK Limited,545.13
201911,201911101711,R5600,Postage Costs,Royal Mail,787
201911,201911100718,R3745,Travel - Public Transport,Capita Travel and Events,2167.2
201911,201911100616,R1710,ICT Training,Blue Light Digital Ltd,17700
201911,201911100698,R7090,Other Collaboration Payments,Police and Crime Commissioner for Cheshire,10267.47
201911,201911101118,R7090,Other Collaboration Payments,Police and Crime Commissioner for Merseyside,6495.84
201911,201911101554,R7090,Other Collaboration Payments,Police and Crime Commissioner for Lancashire,13147
201912,201912102127,R5600,Postage Costs,Royal Mail,1091.78
201912,201912102129,R5600,Postage Costs,Royal Mail,2065.85
201912,201912102134,R5600,Postage Costs,Royal Mail,968.4
201912,201912102136,R5600,Postage Costs,Royal Mail,1176.29
201912,201912102235,R2600,Rent,Reed Rains,750
201912,201912100010,B2302,Inventories/Stocks - General / Admin Equipment - Purchases,Arrow County Supplies,756.4
201912,201912100011,B2302,Inventories/Stocks - General / Admin Equipment - Purchases,Arrow County Supplies,715.18
201912,201912100014,B2302,Inventories/Stocks - General / Admin Equipment - Purchases,Arrow County Supplies,749.2
201912,201912100022,B2312,Inventories/Stocks - Uniforms - Purchases,Sonic Communications Ltd,1190
201912,201912100023,B2312,Inventories/Stocks - Uniforms - Purchases,Sonic Communications Ltd,-1190
201912,201912100024,B2312,Inventories/Stocks - Uniforms - Purchases,Sonic Communications Ltd,-1190
201912,201912100025,B2312,Inventories/Stocks - Uniforms - Purchases,Sonic Communications Ltd,870
201912,201912100055,C4300,Furniture - General,The Senator Group,9573
201912,201912100694,B2312,Inventories/Stocks - Uniforms - Purchases,Kirkbride Eyecare,513.93
201912,201912100696,B2312,Inventories/Stocks - Uniforms - Purchases,Needle Sports,599.99
201912,201912100721,R4400,Books & Publications,Hills Books,1428
201912,201912100822,B2302,Inventories/Stocks - General / Admin Equipment - Purchases,Scenesafe Previously (WA Products (UK) Ltd),705.53
201912,201912100880,B2312,Inventories/Stocks - Uniforms - Purchases,Derby Unitex Ltd,659.85
201912,201912101325,R4300,Furniture - General,Arco Limited,11188.89
201912,201912101341,B2312,Inventories/Stocks - Uniforms - Purchases,Keela International Ltd,669
201912,201912101344,B2312,Inventories/Stocks - Uniforms - Purchases,Keela International Ltd,815.6
201912,201912101353,B2312,Inventories/Stocks - Uniforms - Purchases,Ioma Clothing Company,671.88
201912,201912101374,B2312,Inventories/Stocks - Uniforms - Purchases,MC Products UK Ltd,703.24
201912,201912101567,B2302,Inventories/Stocks - General / Admin Equipment - Purchases,Cromwell Tools,1813
201912,201912101603,B2312,Inventories/Stocks - Uniforms - Purchases,Turner Virr & Co Ltd,1075
201912,201912101718,B2312,Inventories/Stocks - Uniforms - Purchases,Deenside Ltd,1599.8
201912,201912101720,R4550,Staff Clothing & Police Uniform,Deenside Ltd,717.3
201912,201912101724,B2312,Inventories/Stocks - Uniforms - Purchases,Mehler Vario System GmbH,4002
201912,201912101725,B2312,Inventories/Stocks - Uniforms - Purchases,Mehler Vario System GmbH,2962.2
201912,201912101726,B2312,Inventories/Stocks - Uniforms - Purchases,Mehler Vario System GmbH,1206.2
201912,201912101727,B2312,Inventories/Stocks - Uniforms - Purchases,Mehler Vario System GmbH,667
201912,201912101728,B2312,Inventories/Stocks - Uniforms - Purchases,Mehler Vario System GmbH,1156.2
201912,201912101730,B2312,Inventories/Stocks - Uniforms - Purchases,Mehler Vario System GmbH,717
201912,201912101731,B2312,Inventories/Stocks - Uniforms - Purchases,Mehler Vario System GmbH,891.8
201912,201912101746,B2312,Inventories/Stocks - Uniforms - Purchases,Peter Jones (ILG) Ltd,620
201912,201912101749,B2312,Inventories/Stocks - Uniforms - Purchases,Peter Jones (ILG) Ltd,620
201912,201912101768,B2312,Inventories/Stocks - Uniforms - Purchases,Yaffy (MWUK Ltd),3839.9
201912,201912101769,B2312,Inventories/Stocks - Uniforms - Purchases,C W Headdress Ltd,1248
201912,201912101770,B2312,Inventories/Stocks - Uniforms - Purchases,C W Headdress Ltd,572
201912,201912101771,B2312,Inventories/Stocks - Uniforms - Purchases,C W Headdress Ltd,890
201912,201912102178,B2312,Inventories/Stocks - Uniforms - Purchases,Price Western Leather Co Ltd,513
201912,201912102180,B2312,Inventories/Stocks - Uniforms - Purchases,Price Western Leather Co Ltd,1107.6
201912,201912102239,R4400,Books & Publications,Chartered Institute of Public Finance and Accountancy,1100
201912,201912102246,B2312,Inventories/Stocks - Uniforms - Purchases,Wakefield Shirt Group (William Sugden & Sons Ltd),1006.6
201912,201912101315,R6750,Consultants Fees - Other,SMSR Ltd,560
201912,201912101316,R6750,Consultants Fees - Other,SMSR Ltd,665
201912,201912101577,R1720,Other Support Function Training,Police and Crime Commissioner for Lincolnshire,2125
201912,201912101709,R4155,External Printing,Harlow Printing Ltd,502
201912,201912102177,R6730,Non-Staff Advertising,Zengenti Ltd,1226.67
201912,201912102312,R4175,Print Unit - Digital Copier Click Charges,Xerox UK Ltd,1540.01
201912,201912100009,R2720,Other Cleaning & Domestic Equipment,Arrow County Supplies,749.2
201912,201912100012,R2720,Other Cleaning & Domestic Equipment,Arrow County Supplies,1347.6
201912,201912100015,R2725,Cleaning Materials,Arrow County Supplies,524.44
201912,201912100018,R2220,Planned Survey Internal Maintenance,Evac + Chair International Ltd,3702
201912,201912100027,R3110,Vehicle Maintenance - Tyres & Tubes,Goodyear Dunlop Tyres UK Limited,14493.51
201912,201912100034,R3510,Vehicle Fuel,Allstar Business Solutions Ltd,2841.33
201912,201912100047,R2800,Security and Alarms (inc locks),Chubb Fire & Security Limited,855.4
201912,201912100056,R3460,Accident Damage (Below Insurance Threshold),James Alpe Ltd,2902.62
201912,201912100057,R3460,Accident Damage (Below Insurance Threshold),James Alpe Ltd,1000
201912,201912100058,R3460,Accident Damage (Below Insurance Threshold),James Alpe Ltd,839.84
201912,201912100059,R3460,Accident Damage (Below Insurance Threshold),James Alpe Ltd,1000
201912,201912100079,R2700,Cleaning Contract,Bulloughs Cleaning Services Ltd,675
201912,201912100080,R2710,Window Cleaning,Bulloughs Cleaning Services Ltd,900
201912,201912100101,R2290,Planned Servicing General Maintenance,BID Group Ltd,544
201912,201912100106,R2290,Planned Servicing General Maintenance,BID Group Ltd,540
201912,201912100110,R7006,North West Ambulance Service - Estates Management Collaboration,BID Group Ltd,606
201912,201912100111,R7006,North West Ambulance Service - Estates Management Collaboration,BID Group Ltd,606
201912,201912100112,R7006,North West Ambulance Service - Estates Management Collaboration,BID Group Ltd,2853
201912,201912100113,R4540,Canteen - Hot Drink Machines,Rijo 42 Ingredients Ltd,845.36
201912,201912100119,R4540,Canteen - Hot Drink Machines,Rijo 42 Ingredients Ltd,617.84
201912,201912100143,R4540,Canteen - Hot Drink Machines,BNP Paribas Leasing Solutions Ltd,519.99
201912,201912100144,R4540,Canteen - Hot Drink Machines,BNP Paribas Leasing Solutions Ltd,519.99
201912,201912100145,R4540,Canteen - Hot Drink Machines,BNP Paribas Leasing Solutions Ltd,519.99
201912,201912100172,R4520,Canteen - Purchase of Food / Ingredients,PFD (Carlisle) Ltd t/a Pioneer Foodservice,1234.87
201912,201912100173,R4520,Canteen - Purchase of Food / Ingredients,PFD (Carlisle) Ltd t/a Pioneer Foodservice,1038.42
201912,201912100174,R4520,Canteen - Purchase of Food / Ingredients,PFD (Carlisle) Ltd t/a Pioneer Foodservice,1156.74
201912,201912100175,R4520,Canteen - Purchase of Food / Ingredients,PFD (Carlisle) Ltd t/a Pioneer Foodservice,1180.14
201912,201912100177,R4520,Canteen - Purchase of Food / Ingredients,PFD (Carlisle) Ltd t/a Pioneer Foodservice,1154.21
201912,201912100178,R4520,Canteen - Purchase of Food / Ingredients,PFD (Carlisle) Ltd t/a Pioneer Foodservice,1261.14
201912,201912100179,R4520,Canteen - Purchase of Food / Ingredients,PFD (Carlisle) Ltd t/a Pioneer Foodservice,1166.3
201912,201912100181,R2265,Planned Servicing Fire Systems,Orian Solutions Ltd,596.95
201912,201912100202,R3450,Accident Damage (Below Insurance Excess)),Thompson Accident Repair Centre,678.05
201912,201912100203,R3460,Accident Damage (Below Insurance Threshold),Thompson Accident Repair Centre,2534.93
201912,201912100204,R3460,Accident Damage (Below Insurance Threshold),Thompson Accident Repair Centre,1000
201912,201912100209,R3460,Accident Damage (Below Insurance Threshold),Thompson Accident Repair Centre,1000
201912,201912100213,R2225,Planned Internal Structures,D Brown Building & Joinery Limited,13869
201912,201912100214,R2230,Planned Survey Electrics,D Brown Building & Joinery Limited,4326
201912,201912100215,R2245,Planned Survey Alterations & Improvements,D Brown Building & Joinery Limited,7338
201912,201912100216,R2800,Security and Alarms (inc locks),D Brown Building & Joinery Limited,8363
201912,201912100220,R2185,Unplanned Building Maintenance Internal Structures,Refrigeration (Mitton) Ltd,698
201912,201912100223,R2070,Unplanned Building Services Internal Other,Refrigeration (Mitton) Ltd,556
201912,201912100225,R2020,Unplanned Building Services HVAC System,Refrigeration (Mitton) Ltd,689.35
201912,201912100226,R2140,Unplanned Building Maintenance Internal Maintenance,Refrigeration (Mitton) Ltd,1871
201912,201912100227,R2140,Unplanned Building Maintenance Internal Maintenance,Refrigeration (Mitton) Ltd,622
201912,201912100229,R2275,Planned Servicing HVAC System,Refrigeration (Mitton) Ltd,2220
201912,201912100233,R2275,Planned Servicing HVAC System,Refrigeration (Mitton) Ltd,760
201912,201912100235,R2275,Planned Servicing HVAC System,Refrigeration (Mitton) Ltd,570
201912,201912100240,C2830,Professional Fees,Unwin Jones Partnership,2500
201912,201912100248,R7006,North West Ambulance Service - Estates Management Collaboration,Dawson Electrical Services Ltd,2970
201912,201912100253,R2170,Unplanned Building Maintenance External Maintenance,Graeme Howe Fencing Ltd,1045
201912,201912100278,R7006,North West Ambulance Service - Estates Management Collaboration,JJ Group (Contracting) Ltd,1849.42
201912,201912100284,R2235,Planned Survey Environmental Services/Plumbing,Cumbria Mechanical Plumbing Ltd,8426
201912,201912100289,R2150,Unplanned Building Maintenance Electrics,JJ Group (Contracting) Ltd,846.75
201912,201912100304,R2260,Planned Servicing Boiler & Heating Plant,Cumbria Mechanical Plumbing Ltd,2200
201912,201912100374,R3120,Vehicle Maintenance - Parts Purchase,Arnold Clark Automobiles Ltd,810.62
201912,201912100399,R3420,Vehicle Other Supplements,Arnold Clark Automobiles Ltd,693.42
201912,201912100545,R7006,North West Ambulance Service - Estates Management Collaboration,Andidrain Ltd,650
201912,201912100549,R2610,Estates Leases,Cumbria County Council,1706.25
201912,201912100555,R2460,Grounds Maintenance - Contract,S Nicholson Grounds Maintenance,700
201912,201912100637,C4530,Catering - Equipment,Dave Hudson,4439.5
201912,201912100639,R2640,Room Hire,D Tallentire Ltd,608
201912,201912100655,R2060,Unplanned Building Services Environmental Services/Plumbing,R B Loveridge & Son Ltd,794.44
201912,201912100658,R7006,North West Ambulance Service - Estates Management Collaboration,R B Loveridge & Son Ltd,648.5
201912,201912100660,R2060,Unplanned Building Services Environmental Services/Plumbing,R B Loveridge & Son Ltd,1154.27
201912,201912100671,R2060,Unplanned Building Services Environmental Services/Plumbing,R B Loveridge & Son Ltd,699.29
201912,201912100673,R7006,North West Ambulance Service - Estates Management Collaboration,R B Loveridge & Son Ltd,887.58
201912,201912100754,C2245,Planned Survey Alterations & Improvements,Thomas Armstrong (Construction) Ltd,99202.94
201912,201912100761,R7006,North West Ambulance Service - Estates Management Collaboration,Frederick Potts & Sons Ltd,572
201912,201912100763,R2170,Unplanned Building Maintenance External Maintenance,Frederick Potts & Sons Ltd,1325.28
201912,201912100770,R2245,Planned Survey Alterations & Improvements,Frederick Potts & Sons Ltd,3315.5
201912,201912100772,R2170,Unplanned Building Maintenance External Maintenance,Frederick Potts & Sons Ltd,1925
201912,201912100773,R2210,Planned Survey External Maintenance,Frederick Potts & Sons Ltd,1391
201912,201912100779,C2830,Professional Fees,Baker Mallett LLP,827.24
201912,201912100794,R4510,Catering - Meetings,Westmorland Ltd (Rheged Discovery Centre),1160
201912,201912100796,R4510,Catering - Meetings,Westmorland Ltd (Rheged Discovery Centre),504
201912,201912100830,C3900,Vehicle Purchases - Capital,Ford Motor Co Ltd T/A Parts Plus,36456.57
201912,201912100831,C3900,Vehicle Purchases - Capital,Ford Motor Co Ltd T/A Parts Plus,36456.57
201912,201912101174,R2715,Clinical Waste,FCC Environment Uk Ltd,556.4
201912,201912101179,R2715,Clinical Waste,FCC Environment Uk Ltd,509.96
201912,201912101207,R3980,Vehicle Road Fund Licenses,Post Office Counters Ltd,1095
201912,201912101208,R2230,Planned Survey Electrics,Pod Point Limited,1660
201912,201912101210,R2230,Planned Survey Electrics,Pod Point Limited,1930
201912,201912101212,R2230,Planned Survey Electrics,Pod Point Limited,1860
201912,201912101214,R2230,Planned Survey Electrics,Pod Point Limited,1437
201912,201912101216,R2230,Planned Survey Electrics,Pod Point Limited,1745
201912,201912101218,R2230,Planned Survey Electrics,Pod Point Limited,1745
201912,201912101220,R2230,Planned Survey Electrics,Pod Point Limited,1570
201912,201912101222,R2230,Planned Survey Electrics,Pod Point Limited,3060
201912,201912101225,R2680,PFI Occupancy Charges,West Cumbria Estates Management Limited,100965.33
201912,201912101231,R2500,Oil,Scottish Fuels,1156
201912,201912101232,R2500,Oil,Scottish Fuels,3947.74
201912,201912101233,R2500,Oil,Scottish Fuels,5780
201912,201912101234,R2500,Oil,Scottish Fuels,1156
201912,201912101252,R3120,Vehicle Maintenance - Parts Purchase,Arnold Clark Automobiles Ltd,781.57
201912,201912101294,R3120,Vehicle Maintenance - Parts Purchase,Arnold Clark Automobiles Ltd,843.01
201912,201912101310,R3210,Police Vehicle Recovery & Transport,FMG Support (RRRM) Ltd,2872.8
201912,201912101413,R2265,Planned Servicing Fire Systems,FTS Fire & Security Ltd,622.5
201912,201912101414,R7006,North West Ambulance Service - Estates Management Collaboration,FTS Fire & Security Ltd,3350
201912,201912101416,R2185,Unplanned Building Maintenance Internal Structures,FTS Fire & Security Ltd,2226
201912,201912101422,R2140,Unplanned Building Maintenance Internal Maintenance,FTS Fire & Security Ltd,1159.92
201912,201912101479,R3120,Vehicle Maintenance - Parts Purchase,Guy Perry Ltd,773.31
201912,201912101560,R2505,Gas,Flogas Britain Ltd,677.68
201912,201912101561,R2505,Gas,Flogas Britain Ltd,874.79
201912,201912101682,R2740,Destruction of Confidential Waste,Shred-it (Europe) Ltd,563
201912,201912101691,R2610,Estates Leases,Ulverston Properties Ltd,820.83
201912,201912101739,C3905,Vehicle Adaptations - Capital,RS Components U K,513.6
201912,201912101761,R2160,Unplanned Building Maintenance Environmental Services/Plumbing,Zip Heaters UK Ltd,1250
201912,201912101797,R2550,Metered Water,Castle Water Limited,2600.14
201912,201912101798,R2565,Sewerage & Environmental Services,Castle Water Limited,5804.89
201912,201912101803,R2510,Electricity,EDF Energy,6417.01
201912,201912101805,R2510,Electricity,EDF Energy,3109.62
201912,201912101807,R2510,Electricity,EDF Energy,11115.67
201912,201912101808,R2530,Climate Change Levy,EDF Energy,718.82
201912,201912101809,R2510,Electricity,EDF Energy,17713.86
201912,201912101810,R2530,Climate Change Levy,EDF Energy,1134.51
201912,201912101838,R4517,Catering - Training (Lancashire),Police and Crime Commissioner for Lancashire,519
201912,201912101839,R4517,Catering - Training (Lancashire),Police and Crime Commissioner for Lancashire,734
201912,201912102143,R7006,North West Ambulance Service - Estates Management Collaboration,Countrywide Grounds Maintenance Ltd,665
201912,201912102145,R7006,North West Ambulance Service - Estates Management Collaboration,Countrywide Grounds Maintenance Ltd,641.66
201912,201912102183,R2140,Unplanned Building Maintenance Internal Maintenance,Independent Humidifier Services Ltd,1116.72
201912,201912102192,R2460,Grounds Maintenance - Contract,J T Atkinson And Sons Ltd,524.16
201912,201912102220,R3120,Vehicle Maintenance - Parts Purchase,Castrol (UK) Ltd,896.56
201912,201912102230,R3450,Accident Damage (Below Insurance Excess)),Lloyd Motors Ltd,543.75
201912,201912102243,R2505,Gas,Corona Energy,11363.66
201912,201912102244,R2530,Climate Change Levy,Corona Energy,1169.4
201912,201912102298,R3510,Vehicle Fuel,Allstar Business Solutions Ltd,2841.58
201912,201912102299,R3510,Vehicle Fuel,Allstar Business Solutions Ltd,2399.05
201912,201912102302,R3510,Vehicle Fuel,Allstar Business Solutions Ltd,1369.62
201912,201912102303,R3510,Vehicle Fuel,Allstar Business Solutions Ltd,1627.91
201912,201912102304,R3510,Vehicle Fuel,Allstar Business Solutions Ltd,3225.37
201912,201912102306,R3510,Vehicle Fuel,Allstar Business Solutions Ltd,813.61
201912,201912102307,R3510,Vehicle Fuel,Allstar Business Solutions Ltd,64794.46
201912,201912102308,R3510,Vehicle Fuel,Allstar Business Solutions Ltd,1463.33
201912,201912101301,R1830,Training Equipment & Materials,Wel Medical Ltd,1580
201912,201912101350,R1830,Training Equipment & Materials,Kays Medical Limited,1216
201912,201912101756,R1830,Training Equipment & Materials,Wex Photo Video,536.54
201912,201912102242,R1630,Other Operational Training,Enlighten Training & Consultancy Ltd,2769.4
201912,201912102115,R1152,Gym Equipment - Lease,Investec Asset Finance Plc,2121
201912,201912102116,R1152,Gym Equipment - Lease,Investec Asset Finance Plc,2121
201912,201912101336,R6646,Redacted: Disclosure of information would breach the Data Protection Act 1998 ,Redacted: Disclosure of information would breach the Data Protection Act 1998 ,1607.6
201912,201912101347,B4003,Redacted: Disclosure of information would breach the Data Protection Act 1998 ,Redacted: Disclosure of information would breach the Data Protection Act 1998 ,12000
201912,201912101348,B4004,Redacted: Disclosure of information would breach the Data Protection Act 1998 ,Redacted: Disclosure of information would breach the Data Protection Act 1998 ,32115
201912,201912101688,B4006,Provision for Insurance Liabilities - Drawdown from Provision - Own Counsel's Costs,5 Essex Court,600
201912,201912100109,Z2123,Returned Payments - Clearance in the Year (Expenditure),BID Group Ltd,1195.5
201912,201912100149,R7290,Other Third Party Payments,Police and Crime Commissioner for Avon and Somerset,2303
201912,201912100210,Z2123,Returned Payments - Clearance in the Year (Expenditure),Harraby Catholic Club Youth Football,1806
201912,201912100548,R6835,Internal Audit Fee,Cumbria County Council,11016
201912,201912100551,R6835,Internal Audit Fee,Cumbria County Council,23471.81
201912,201912100606,R4880,Ex-Gratia Payments,Exgratia Payments,1097
201912,201912101230,R7290,Other Third Party Payments,Police and Crime Commissioner for Devon and Cornwall,7500
201912,201912101235,R6830,External Audit Fee,Shared Services Connected Limited on behalf of Cabinet Office,1000
201912,201912101604,R7380,Settlement of 3rd Party Claims for damage to property / vehicles,Gallagher Bassett International Ltd,4272.69
201912,201912101690,R6824,NatWest Corporate Card Payments,Natwest Corporate Card,4693.29
201912,201912101717,R6830,External Audit Fee,Grant Thornton UK LLP,2888
201912,201912102112,R7042,Pension Services,XPS Administration Limited T/A XPS Administration,8396
201912,201912100019,R4845,Redacted: Disclosure of information would breach the Data Protection Act 1998 ,Redacted: Disclosure of information would breach the Data Protection Act 1998 ,2187.62
201912,201912100146,R1630,Other Operational Training,CSI Tech Ltd,1200
201912,201912100552,R7008,CCC - Safeguarding Vulnerable People,Cumbria County Council,13811
201912,201912100833,R4710,Forensic Analysis - Serious Crime,Key Forensic Services Ltd (Orange UK Holdings Ltd),2659.2
201912,201912100834,R4710,Forensic Analysis - Serious Crime,Key Forensic Services Ltd (Orange UK Holdings Ltd),2094.3
201912,201912100840,R4715,Forensic Analysis - Volume Crime,Key Forensic Services Ltd (Orange UK Holdings Ltd),786.72
201912,201912100842,R4705,Forensic Analysis - Over Prescribed Limit,Key Forensic Services Ltd (Orange UK Holdings Ltd),1079.53
201912,201912100843,R4705,Forensic Analysis - Over Prescribed Limit,Key Forensic Services Ltd (Orange UK Holdings Ltd),1514.53
201912,201912100844,R4705,Forensic Analysis - Over Prescribed Limit,Key Forensic Services Ltd (Orange UK Holdings Ltd),1283.25
201912,201912100846,R4715,Forensic Analysis - Volume Crime,Key Forensic Services Ltd (Orange UK Holdings Ltd),1055.6
201912,201912100848,R4710,Forensic Analysis - Serious Crime,Key Forensic Services Ltd (Orange UK Holdings Ltd),620.6
201912,201912100850,R4715,Forensic Analysis - Volume Crime,Key Forensic Services Ltd (Orange UK Holdings Ltd),655.6
201912,201912100852,R4705,Forensic Analysis - Over Prescribed Limit,Key Forensic Services Ltd (Orange UK Holdings Ltd),1123.03
201912,201912100854,R4705,Forensic Analysis - Over Prescribed Limit,Key Forensic Services Ltd (Orange UK Holdings Ltd),905.53
201912,201912100855,R4710,Forensic Analysis - Serious Crime,Key Forensic Services Ltd (Orange UK Holdings Ltd),605.65
201912,201912100856,R4715,Forensic Analysis - Volume Crime,Key Forensic Services Ltd (Orange UK Holdings Ltd),625.45
201912,201912100889,R4780,CSI Consumables,Forensic Focus Ltd,670
201912,201912101224,R4715,Forensic Analysis - Volume Crime,Cellebrite Uk Ltd,830
201912,201912101302,R4780,CSI Consumables,Expert Peripheral Designs Ltd,1293
201912,201912101314,R1880,Conference & Seminar Fees,The Investigator,798
201912,201912101335,R5865,Operational Equipment - Other,Caseva Ltd,790
201912,201912101339,R1610,CID Training,Kellogg Brown & Root Ltd,569.6
201912,201912101396,R5950,Redacted: Disclosure of information would breach the Data Protection Act 1998 ,Redacted: Disclosure of information would breach the Data Protection Act 1998 ,711.1
201912,201912101397,R5950,Redacted: Disclosure of information would breach the Data Protection Act 1998 ,Redacted: Disclosure of information would breach the Data Protection Act 1998 ,594.48
201912,201912101605,R5950,Redacted: Disclosure of information would breach the Data Protection Act 1998 ,Redacted: Disclosure of information would breach the Data Protection Act 1998 ,650.78
201912,201912101656,R1630,Other Operational Training,Police and Crime Commissioner for Greater Manchester,1240
201912,201912101686,R4845,Redacted: The information is confidential or would attract an exemption under the Freedom of Information Act e.g. where disclosure could be prejudicial to the commercial interests of any person including the authority ,Redacted: The information is confidential or would attract an exemption under the Freedom of Information Act e.g. where disclosure could be prejudicial to the commercial interests of any person including the authority ,1340
201912,201912101736,R1610,CID Training,CJS Event Solutions Ltd,595
201912,201912101755,R4735,Communication Auto Services - OS,Home Office,17373.68
201912,201912102117,R5820,Operational Equipment - Domestic Violence Alarms,Vodafone Limited,-697.9
201912,201912102118,R5820,Operational Equipment - Domestic Violence Alarms,Vodafone Limited,741.2
201912,201912102119,R5820,Operational Equipment - Domestic Violence Alarms,Vodafone Limited,630
201912,201912102120,R5820,Operational Equipment - Domestic Violence Alarms,Vodafone Limited,590
201912,201912102157,R1610,CID Training,College of Policing (NPIA),1651.5
201912,201912102201,R5950,Redacted: Disclosure of information would breach the Data Protection Act 1998 ,Redacted: Disclosure of information would breach the Data Protection Act 1998 ,616.71
201912,201912102202,R5950,Redacted: Disclosure of information would breach the Data Protection Act 1998 ,Redacted: Disclosure of information would breach the Data Protection Act 1998 ,591.47
201912,201912102211,R4720,Forensic Analysis - PACE / DNA,Eurofins Forensic Services Ltd,1687.71
201912,201912102213,R4715,Forensic Analysis - Volume Crime,Eurofins Forensic Services Ltd,607.2
201912,201912102215,R4720,Forensic Analysis - PACE / DNA,Eurofins Forensic Services Ltd,2482.17
201912,201912100621,R1120,Ergonomist,Green Ends Limited,2520
201912,201912100622,R1120,Ergonomist,Green Ends Limited,2520
201912,201912101165,R1118,Counselling ,Etre Counselling & Mental Health,630
201912,201912101351,R1132,Immunisations & Vaccinations,Kays Medical Limited,3179.25
201912,201912101390,R1110,Redacted: The information is confirdential or would attract an exemption under the Freedom of Information Act e.g. where disclosure could be prejudicial to the commercial interests of any person including the authority,Redacted: The information is confirdential or would attract an exemption under the Freedom of Information Act e.g. where disclosure could be prejudicial to the commercial interests of any person including the authority,575
201912,201912101391,R1110,Redacted: The information is confirdential or would attract an exemption under the Freedom of Information Act e.g. where disclosure could be prejudicial to the commercial interests of any person including the authority,Redacted: The information is confirdential or would attract an exemption under the Freedom of Information Act e.g. where disclosure could be prejudicial to the commercial interests of any person including the authority,575
201912,201912101392,R1110,Redacted: The information is confirdential or would attract an exemption under the Freedom of Information Act e.g. where disclosure could be prejudicial to the commercial interests of any person including the authority,Redacted: The information is confirdential or would attract an exemption under the Freedom of Information Act e.g. where disclosure could be prejudicial to the commercial interests of any person including the authority,1150
201912,201912101606,R0500,Agency Staff,Comensura Ltd,738.8
201912,201912101607,R0500,Agency Staff,Comensura Ltd,1145.94
201912,201912101608,R0500,Agency Staff,Comensura Ltd,3721.5
201912,201912101609,R0500,Agency Staff,Comensura Ltd,1288.31
201912,201912101611,R0500,Agency Staff,Comensura Ltd,722.61
201912,201912101612,R0500,Agency Staff,Comensura Ltd,526.49
201912,201912101613,R0500,Agency Staff,Comensura Ltd,2264.05
201912,201912101614,R0500,Agency Staff,Comensura Ltd,1083.82
201912,201912101615,R0500,Agency Staff,Comensura Ltd,1939.53
201912,201912101618,R0500,Agency Staff,Comensura Ltd,2264.05
201912,201912101619,R0500,Agency Staff,Comensura Ltd,812.68
201912,201912101620,R0500,Agency Staff,Comensura Ltd,1860.75
201912,201912101621,R0500,Agency Staff,Comensura Ltd,874.48
201912,201912101622,R0500,Agency Staff,Comensura Ltd,588.65
201912,201912101624,R0500,Agency Staff,Comensura Ltd,722.63
201912,201912101625,R0500,Agency Staff,Comensura Ltd,526.49
201912,201912101626,R0500,Agency Staff,Comensura Ltd,2264.05
201912,201912101628,R0500,Agency Staff,Comensura Ltd,591.04
201912,201912101629,R0500,Agency Staff,Comensura Ltd,1398.68
201912,201912101630,R0500,Agency Staff,Comensura Ltd,1860.75
201912,201912101631,R0500,Agency Staff,Comensura Ltd,954.47
201912,201912101632,R0500,Agency Staff,Comensura Ltd,588.65
201912,201912101635,R0500,Agency Staff,Comensura Ltd,585.91
201912,201912101636,R0500,Agency Staff,Comensura Ltd,526.49
201912,201912101637,R0500,Agency Staff,Comensura Ltd,2264.05
201912,201912101639,R0500,Agency Staff,Comensura Ltd,1058
201912,201912101640,R0500,Agency Staff,Comensura Ltd,3721.5
201912,201912101641,R0500,Agency Staff,Comensura Ltd,1013.99
201912,201912101642,R0500,Agency Staff,Comensura Ltd,582.03
201912,201912101645,R0500,Agency Staff,Comensura Ltd,722.62
201912,201912101646,R0500,Agency Staff,Comensura Ltd,722.92
201912,201912101647,R0500,Agency Staff,Comensura Ltd,1032.8
201912,201912101648,R0500,Agency Staff,Comensura Ltd,1860.75
201912,201912101649,R0500,Agency Staff,Comensura Ltd,986.58
201912,201912101650,R0500,Agency Staff,Comensura Ltd,582.03
201912,201912101651,R0500,Agency Staff,Comensura Ltd,698.92
201912,201912101652,R0500,Agency Staff,Comensura Ltd,722.63
201912,201912101653,R0500,Agency Staff,Comensura Ltd,936.18
201912,201912101722,R1136,Blood Screening,Nationwide Pathology Limited,983.5
201912,201912102124,R1138,Psychological Screening,NTA Psychological Screening Ltd,1036.02
201912,201912102161,R1620,Public Order Training,College of Policing (NPIA),2796.5
201912,201912100016,R7002,Mutual Aid,Police and Crime Commissioner for West Midlands,2680.23
201912,201912100053,R4630,Detained Persons - Appropriate Adult Services,Child Action North West,9323.86
201912,201912100054,R4630,Detained Persons - Appropriate Adult Services,Child Action North West,7422.24
201912,201912100067,R1610,Redacted: Disclosure of information would breach the Data Protection Act Disclosure of information would breach the Data Protection Act 1998998,Redacted: Disclosure of information would breach the Data Protection Act Disclosure of information would breach the Data Protection Act 1998998,1000
201912,201912100675,R5916,Police Dogs - Vets Fees,Frame & Swift,505.1
201912,201912100735,R4625,Detained Persons - Laundry,Shortridge Laundry,592.77
201912,201912100737,R4625,Detained Persons - Laundry,Shortridge Laundry,1013.79
201912,201912100860,R1630,Other Operational Training,Police and Crime Commissioner for Cheshire, 673.00 
201912,201912101193,R4605,Detained Persons - Clothing,Charles Fellows Supplies Limited, 750.00 
201912,201912101300,R1610,CID Training,Ai Training Services Ltd," 3,960.00 "
201912,201912101308,R6610,Vehicle Recovery Costs,FMG Support (RRRM) Ltd, 811.00 
201912,201912101660,R1610,Redacted: Disclosure of information would breach the Data Protection Act Disclosure of information would breach the Data Protection Act 1998998,Redacted: Disclosure of information would breach the Data Protection Act Disclosure of information would breach the Data Protection Act 1998998, 850.00 
201912,201912101673,R5865,Operational Equipment - Other,BOC Gases, 521.00 
201912,201912101704,R5842,Operational Equipment - UAV / Drones Maintenance,Colena Ltd (Heliguy)," 3,352.84 "
201912,201912101763,R4950,Interpreters Fees - Face to Face,Capita Translation and Interpreting (Applied Language Solutions Ltd)," 3,321.85 "
201912,201912101764,R4955,Interpreters Fees - Telephone,Capita Translation and Interpreting (Applied Language Solutions Ltd), 596.73 
201912,201912101765,R4960,Interpreters Fees - Translation (Written),Capita Translation and Interpreting (Applied Language Solutions Ltd)," 1,236.76 "
201912,201912101841,R5835,Operational Equipment - Testing Kits & Consumables,D TEC International Ltd," 1,734.00 "
201912,201912101842,R5835,Operational Equipment - Testing Kits & Consumables,D TEC International Ltd," 1,734.00 "
201912,201912101843,R5835,Operational Equipment - Testing Kits & Consumables,D TEC International Ltd," 1,734.00 "
201912,201912101846,R1630,Other Operational Training,The Atacc Group (Promedsol)," 3,960.00 "
201912,201912102149,R1630,Other Operational Training,College of Policing (NPIA)," 1,000.00 "
201912,201912102150,R1630,Other Operational Training,College of Policing (NPIA)," 1,000.00 "
201912,201912102151,R1630,Other Operational Training,College of Policing (NPIA)," 1,000.00 "
201912,201912102152,R1630,Other Operational Training,College of Policing (NPIA)," 1,000.00 "
201912,201912102154,R1630,Other Operational Training,College of Policing (NPIA)," 2,115.50 "
201912,201912100749,R5965,Crime Prevention - Labour Costs / Fitting,Mark Tubman (Locksmith & Joinery)," 1,815.00 "
201912,201912100750,R5965,Crime Prevention - Labour Costs / Fitting,Mark Tubman (Locksmith & Joinery)," 1,485.00 "
201912,201912100751,R5965,Crime Prevention - Labour Costs / Fitting,Mark Tubman (Locksmith & Joinery)," 2,120.00 "
201912,201912100752,R5965,Crime Prevention - Labour Costs / Fitting,Mark Tubman (Locksmith & Joinery), 685.00 
201912,201912100798,R4155,External Printing,PA Promotions," 1,218.00 "
201912,201912101545,R5960,Community Initiatives - Activities & Competitions,Brathay Trust," 2,323.20 "
201912,201912100547,R6835,Internal Audit Fee,Cumbria County Council," 3,427.20 "
201912,201912100550,R6835,Internal Audit Fee,Cumbria County Council," 11,611.06 "
201912,201912100640,R6785,Contributions - PCC Commissioning Services,Eden District Council," 50,000.00 "
201912,201912100881,R6785,Contributions - PCC Commissioning Services,Victim Support," 72,888.55 "
201912,201912100882,R6785,Contributions - PCC Commissioning Services,Victim Support," 72,888.55 "
201912,201912100883,R6785,Contributions - PCC Commissioning Services,Victim Support," 72,888.55 "
201912,201912100884,R6785,Contributions - PCC Commissioning Services,Victim Support," 18,688.33 "
201912,201912100885,R6785,Contributions - PCC Commissioning Services,Victim Support," 18,688.33 "
201912,201912100886,R6785,Contributions - PCC Commissioning Services,Victim Support," 18,688.33 "
201912,201912100887,R6785,Contributions - PCC Commissioning Services,Victim Support," 18,688.33 "
201912,201912100888,R6785,Contributions - PCC Commissioning Services,Victim Support," 72,888.55 "
201912,201912101385,R6785,Contributions - PCC Commissioning Services,Resource Creatives Enterprises Ltd, 692.44 
201912,201912101576,R1880,Conference & Seminar Fees,Police and Crime Commissioner for North Wales, 646.74 
201912,201912101716,R6830,External Audit Fee,Grant Thornton UK LLP," 5,840.00 "
201912,201912101754,R6730,Non-Staff Advertising,Newsquest Media Group," 1,000.00 "
201912,201912102310,R5867,Operational Equipment - Maintenance,Fernico Europe Ltd," 1,400.00 "
201912,201912100001,R5325,Computer Software - Maintenance,Cleverbridge (X-Ways Software Technology AG), 848.80 
201912,201912100006,R5325,Computer Software - Maintenance,Computacenter UK Ltd," 13,222.78 "
201912,201912100033,R5315,Computer Hardware - Maintenance,SCC (Specialist Computer Centre)," 18,651.35 "
201912,201912100122,C5110,Networks Hardware Purchase,BT Business Direct Ltd, 975.00 
201912,201912100152,R5325,Computer Software - Maintenance,WPC Software Limited," 3,263.42 "
201912,201912101166,R5325,Computer Software - Maintenance,Capita Secure Information Solutions Ltd," 17,481.72 "
201912,201912101654,C6755,Consultants Fees - ICT,NCC Group Security Services Limited," 6,187.50 "
201912,201912101655,C6755,Consultants Fees - ICT,NCC Group Security Services Limited," 1,013.71 "
201912,201912101661,R5120,Networks Private Circuits,Vodafone Limited," 11,876.21 "
201912,201912101662,R5120,Networks Private Circuits,Vodafone Limited," 3,958.16 "
201912,201912101664,R5120,Networks Private Circuits,Vodafone Limited," 3,958.16 "
201912,201912101665,R5120,Networks Private Circuits,Vodafone Limited," 11,876.21 "
201912,201912101666,R5120,Networks Private Circuits,Vodafone Limited," 7,121.64 "
201912,201912101667,R5120,Networks Private Circuits,Vodafone Limited," 12,284.63 "
201912,201912101668,R5120,Networks Private Circuits,Vodafone Limited,"-7,431.83 "
201912,201912101672,R5310,Computer Hardware - Purchase,Rocom Ltd (Nimans), 609.95 
201912,201912101681,R5315,Computer Hardware - Maintenance,Specialised Equipment Cleaning, 620.00 
201912,201912101687,R5010,Telephone Charges - Landlines,TalkTalk," 2,618.24 "
201912,201912101689,R1710,ICT Training,PKI Solutions Inc," 2,385.43 "
201912,201912101701,C6755,Consultants Fees - ICT,I.T. Professional Services Limited," 3,000.00 "
201912,201912101712,C6755,Consultants Fees - ICT,MHR International UK LTD," 3,995.00 "
201912,201912101713,C6755,Consultants Fees - ICT,MHR International UK LTD," 1,249.98 "
201912,201912102138,R5325,Computer Software - Maintenance,Griffeye Technologies AB," 2,985.00 "
201912,201912102140,R5325,Computer Software - Maintenance,Fortrus Limited," 78,732.00 "
201912,201912102141,R1710,ICT Training,Fortrus Limited," 1,000.00 "
201912,201912102146,R5215,Radio / Airwave Equipment - Maintenance,Airwave Solutions Limited (Subsidiary:- Kelvin Connect)," 76,981.56 "
201912,201912102166,C6755,Consultants Fees - ICT,Corporate Project Solutions," 7,560.00 "
201912,201912102167,C6755,Consultants Fees - ICT,Corporate Project Solutions," 1,125.83 "
201912,201912102174,R5210,Radio / Airwave Equipment - Purchases,Motorola Ltd, 875.00 
201912,201912102314,R5345,Computer & Printer Consumables,Xerox UK Ltd," 4,857.81 "
201912,201912102316,C6755,Consultants Fees - ICT,Finyx Consulting Limited," 7,000.00 "
201912,201912100007,R5600,Postage Costs,Pitney Bowes Ltd," 3,622.70 "
201912,201912100546,R5830,Operational Equipment - Crime Prevention Equipment / Items,Cumbria County Council," 3,019.59 "
201912,201912100575,R4090,Redacted: The information is confidential or would attract an exemption under the Freedom of Information Act e.g. where disclosure could be prejudicial to the commercial interests of any person including the authority,Redacted: The information is confidential or would attract an exemption under the Freedom of Information Act e.g. where disclosure could be prejudicial to the commercial interests of any person including the authority, 599.31 
201912,201912100580,R4090,Redacted: The information is confidential or would attract an exemption under the Freedom of Information Act e.g. where disclosure could be prejudicial to the commercial interests of any person including the authority,Redacted: The information is confidential or would attract an exemption under the Freedom of Information Act e.g. where disclosure could be prejudicial to the commercial interests of any person including the authority, 860.76 
201912,201912100582,R4090,Redacted: The information is confidential or would attract an exemption under the Freedom of Information Act e.g. where disclosure could be prejudicial to the commercial interests of any person including the authority,Redacted: The information is confidential or would attract an exemption under the Freedom of Information Act e.g. where disclosure could be prejudicial to the commercial interests of any person including the authority, 617.73 
201912,201912100642,R6870,Subsistence - Training,Brooklands Guest House, 640.00 
201912,201912100651,R6680,Presentations & Awards Ceremonies,Roundthorn Country House," 1,050.00 "
201912,201912100913,R6850,Hotel Accommodation - Training,Capita Travel and Events, 800.00 
201912,201912100928,R6850,Hotel Accommodation - Training,Capita Travel and Events, 652.00 
201912,201912100945,R6850,Hotel Accommodation - Training,Capita Travel and Events, 564.00 
201912,201912100950,R6850,Hotel Accommodation - Training,Capita Travel and Events, 515.00 
201912,201912100956,R6850,Hotel Accommodation - Training,Capita Travel and Events," 1,050.00 "
201912,201912100973,R3745,Travel - Public Transport,Capita Travel and Events, 523.00 
201912,201912100998,R6850,Hotel Accommodation - Training,Capita Travel and Events," 1,692.49 "
201912,201912101000,R6850,Hotel Accommodation - Training,Capita Travel and Events, 600.00 
201912,201912101001,R6850,Hotel Accommodation - Training,Capita Travel and Events, 928.34 
201912,201912101033,R6850,Hotel Accommodation - Training,Capita Travel and Events," 1,900.00 "
201912,201912101034,R6850,Hotel Accommodation - Training,Capita Travel and Events," 2,820.00 "
201912,201912101035,R6850,Hotel Accommodation - Training,Capita Travel and Events," 7,932.00 "
201912,201912101040,R6850,Hotel Accommodation - Training,Capita Travel and Events," 1,250.00 "
201912,201912101044,R6850,Hotel Accommodation - Training,Capita Travel and Events, 600.00 
201912,201912101045,R6850,Hotel Accommodation - Training,Capita Travel and Events," 1,440.00 "
201912,201912101047,R6850,Hotel Accommodation - Training,Capita Travel and Events," 1,472.00 "
201912,201912101075,R6850,Hotel Accommodation - Training,Capita Travel and Events," 2,615.00 "
201912,201912101084,R6850,Hotel Accommodation - Training,Capita Travel and Events, 650.04 
201912,201912101089,R6850,Hotel Accommodation - Training,Capita Travel and Events, 633.34 
201912,201912101092,R6850,Hotel Accommodation - Training,Capita Travel and Events," 1,850.00 "
201912,201912101099,R6850,Hotel Accommodation - Training,Capita Travel and Events, 538.55 
201912,201912101123,R6850,Hotel Accommodation - Training,Capita Travel and Events, 700.00 
201912,201912101135,R3745,Travel - Public Transport,Capita Travel and Events," 1,278.67 "
201912,201912101150,R3745,Travel - Public Transport,Capita Travel and Events," 1,059.27 "
201912,201912102087,R3605,Vehicle Hire - Training,Enterprise Rent-a-car UK Limited, 565.32 
201912,201912102160,R6840,Hotel Accommodation,College of Policing (NPIA), 745.00 
201912,201912101155,R3745,Travel - Public Transport,Capita Travel and Events," 1,399.80 "
201912,201912100861,R7090,Other Collaboration Payments,Police and Crime Commissioner for Cheshire," 4,980.91 "
201912,201912101570,R7090,Other Collaboration Payments,Police and Crime Commissioner for Leicestershire," 2,200.00 "
